Body Name,Service Area,Expense Type,Invoice Payment Date,Transaction Number,Net Amount,Supplier Name
TfGM,Transport,Legal Services,05/01/2016,5100089189,"2,037.50",ADDLESHAW GODDARD LLP
TfGM,Transport,Community Engagement Services,05/01/2016,5100089015,"43,687.08",AECOM LTD
TfGM,Corporate Services,IS Support Services,05/01/2016,5100089121,"10,725.00",AMBERSAIL LTD
TfGM,Corporate Services,IS Software & Maintenance,05/01/2016,5100089178,"19,500.00",APPLIED CARD TECHNOLOGIES
TfGM,Transport,Capital Costs - Project Support Services,05/01/2016,5100089172,"14,049.09",ATKINS LTD
TfGM,Transport,Capital Costs - Programme and Project Management Services,05/01/2016,5100089173,"8,642.55",ATKINS LTD
TfGM,Transport,Capital Costs - IS Support Services,05/01/2016,5100089118,"3,200.00",BT ENGAGE IT
TfGM,Corporate Services,IS Software & Licences,05/01/2016,5100089119,"2,063.70",BT ENGAGE IT
TfGM,Transport,Capital Costs - IS Support Services,05/01/2016,5100089122,"3,200.00",BT ENGAGE IT
TfGM,Corporate Services,IS Consumables,05/01/2016,5100089123,"1,600.00",BT ENGAGE IT
TfGM,Corporate Services,CCTV Support Services,05/01/2016,5100089169,"6,662.20",BT ENGAGE IT
TfGM,Transport,Capital Costs - Computer and Communications Equipment,05/01/2016,5100089170,"7,389.94",BT ENGAGE IT
TfGM,Transport,Capital Costs - Capital Project Main Contract Works,05/01/2016,1900044788,"50,678.63",C SPENCER LTD
TfGM,Corporate Services,Employee Reimbursed Costs,05/01/2016,5100089125,"9,914.00",CHILDCARE VOUCHERS LTD
TfGM,Transport,Postage Costs,05/01/2016,5100088709,421.65,CITY SPRINT UK
TfGM,Corporate Services,Procurement Services,05/01/2016,5100089149,"14,400.00",CNC PERFORMANCE CONSULTANTS LTD
TfGM,Transport,Concessionary Reimbursement,05/01/2016,1900044779,956.00,CONNECT CARS LTD
TfGM,Corporate Services,IS Consumables,05/01/2016,5100088976,"2,000.00",CORPORATE DIRECT (EUROPE) LTD
TfGM,Corporate Services,Other Equipment,05/01/2016,5100089017,960.00,DIGITAL HEARING CARE SOLUTIONS LTD
TfGM,Transport,Print & Media,05/01/2016,5100088801,"8,795.00",DIVA CREATIVE LTD
TfGM,Transport,Planning Support Services,05/01/2016,5100088802,"6,467.50",DIVA CREATIVE LTD
TfGM,Transport,Capital Costs - Legal Services,05/01/2016,5100089105,"35,264.50",DLA PIPER UK LLP
TfGM,Transport,Programme Management Services,05/01/2016,5100089204,"4,800.00",EDGERTON MANAGEMENT SERVICES LTD
TfGM,Transport,Training,05/01/2016,1900044790,"2,785.30",FIONA COFFEY CONSULTING LTD
TfGM,Transport,Capital Costs - Programme and Project Management Services,05/01/2016,5100089176,"3,960.00",FIRCROFT ENGINEERING SERVICES LTD
TfGM,Transport,Capital Costs - Programme and Project Management Services,05/01/2016,5100089198,"8,470.00",FIRCROFT ENGINEERING SERVICES LTD
TfGM,Transport,Capital Costs - Engineering Support Services,05/01/2016,5100088496,"9,801.13",GUTTERIDGE HASKINS AND DAVEY LTD
TfGM,Transport,"Rent, Rates & Service Charges",05/01/2016,1900044733,"1,125.00",JEAN HUANG
TfGM,Transport,Street Furniture Equipment,05/01/2016,5100089099,"3,989.49",JONES LIGHTING
TfGM,Transport,Concessionary Reimbursement,05/01/2016,1900044775,"1,463.00",METRO TAXIS LTD
TfGM,Transport,Metrolink Operating Costs,05/01/2016,5100089127,"1,255,411.80",METROLINK RATP DEV LTD
TfGM,Transport,Metrolink Operating Costs,05/01/2016,5100089131,"85,052.20",METROLINK RATP DEV LTD
TfGM,Transport,Metrolink Operating Costs,05/01/2016,5100089133,"17,475.27",METROLINK RATP DEV LTD
TfGM,Transport,Metrolink Operating Costs,05/01/2016,5100089134,"13,243.87",METROLINK RATP DEV LTD
TfGM,Transport,Metrolink Operating Costs,05/01/2016,5100089135,"13,835.35",METROLINK RATP DEV LTD
TfGM,Transport,Metrolink Operating Costs,05/01/2016,5100089136,"112,517.55",METROLINK RATP DEV LTD
TfGM,Transport,Metrolink Operating Costs,05/01/2016,5100089137,"293,445.77",METROLINK RATP DEV LTD
TfGM,Transport,Metrolink Operating Costs,05/01/2016,5100089139,"6,302.21",METROLINK RATP DEV LTD
TfGM,Transport,Metrolink Operating Costs,05/01/2016,5100089140,"3,150.49",METROLINK RATP DEV LTD
TfGM,Transport,Metrolink Operating Costs,05/01/2016,5100089141,"3,150.49",METROLINK RATP DEV LTD
TfGM,Transport,Metrolink Operating Costs,05/01/2016,5100089142,"3,150.49",METROLINK RATP DEV LTD
TfGM,Transport,Metrolink Operating Costs,05/01/2016,5100089144,"31,508.60",METROLINK RATP DEV LTD
TfGM,Transport,Metrolink Operating Costs,05/01/2016,5100089145,"339,916.13",METROLINK RATP DEV LTD
TfGM,Corporate Services,IS Support Services,05/01/2016,5100088759,"2,284.40",MORSON INTERNATIONAL
TfGM,Transport,Smart Ticketing,05/01/2016,5100089186,"7,200.00",MORSON INTERNATIONAL
TfGM,Transport,Capital Costs - Heavy Rail Support Services,05/01/2016,5100087034,"148,827.19",MOTT MACDONALD LTD
TfGM,Transport,Capital Costs - Design Support Services,05/01/2016,5100089112,"47,687.38",MOTT MACDONALD LTD
TfGM,Transport,Print & Media,05/01/2016,5100089194,"2,079.50",OMEGA PRINT AND DESIGN LTD
TfGM,Corporate Services,Procurement Services,05/01/2016,5100089130,"9,187.50",OPUS BESTPAY LTD
TfGM,Corporate Services,IS Support Services,05/01/2016,5100089138,"11,760.00",PMA GLOBAL MOBILITY RESOURCES LTD
TfGM,Transport,Capital Costs - Programme and Project Management Services,05/01/2016,5100088863,"3,095.40",PRACTICUS LIMITED
TfGM,Corporate Services,Temporary Vacancy Cover,05/01/2016,5100089101,701.63,Robert Walters Plc
TfGM,Transport,Print & Media,05/01/2016,5100089102,"6,371.32",SERVICEPOINT UK
TfGM,Transport,Traffic Signal Works,05/01/2016,5100089155,"38,022.83",SIEMENS PLC
TfGM,Transport,Traffic Signal Works,05/01/2016,5100089157,"14,821.63",SIEMENS PLC
TfGM,Transport,Traffic Signal Works,05/01/2016,5100089161,"2,874.77",SIEMENS PLC
TfGM,Transport,Traffic Signal Works,05/01/2016,5100089164,"2,470.49",SIEMENS PLC
TfGM,Transport,Traffic Signal Works,05/01/2016,5100089165,"7,819.51",SIEMENS PLC
TfGM,Transport,Traffic Signal Works,05/01/2016,5100089168,"4,094.72",SIEMENS PLC
TfGM,Transport,Traffic Signal Works,05/01/2016,5100089171,"19,487.47",SIEMENS PLC
TfGM,Transport,Traffic Signal Works,05/01/2016,5100089191,"6,052.52",SIEMENS PLC
TfGM,Transport,Traffic Signal Works,05/01/2016,5100089201,"17,290.92",SIEMENS PLC
TfGM,Transport,Traffic Signal Works,05/01/2016,5100089202,"25,502.56",SIEMENS PLC
TfGM,Transport,Traffic Signal Works,05/01/2016,5100089203,"6,595.92",SIEMENS PLC
TfGM,Transport,Capital Costs - Engineering Support Services,05/01/2016,5100088777,"32,100.00",SOLARIS TECHNOLOGIES LTD
TfGM,Transport,Planning Support Services,05/01/2016,5100088297,"12,818.33",STEER DAVIES GLEEVE LTD
TfGM,Transport,Transport Planning & Monitoring Services,05/01/2016,5100088953,"10,937.50",SUSTRANS LTD
TfGM,Transport,Capital Costs - Computer and Communications Equipment,05/01/2016,5100088899,"1,214.60",TOTAL COMPUTERS LTD
TfGM,Transport,Capital Costs - Computer and Communications Equipment,05/01/2016,5100088991,449.94,TOTAL COMPUTERS LTD
TfGM,Transport,Cleaning,05/01/2016,5100089092,458.64,TUDOR CONTRACT CLEANERS LTD
TfGM,Transport,Smart Ticketing,05/01/2016,5100088567,"68,409.00",VIX TECHNOLOGY LTD
TfGM,Transport,Traffic and Transportation Surveys,05/01/2016,5100089183,"3,978.82",WILDE CONSULTANTS LTD
TfGM,Transport,Vehicle Costs,06/01/2016,1200037056,554.70,ALLSTAR
TfGM,Transport,Concessionary Reimbursement,08/01/2016,1900044900,521.00,1919 TAXIS
TfGM,Transport,Driver Intervention Course Delivery Costs,08/01/2016,1900044842,765.80,A HOLT
TfGM,Transport,Driver Intervention Course Delivery Costs,08/01/2016,1900044876,875.20,A WOODWARD
TfGM,Transport,Capital Costs - Engineering Support Services,08/01/2016,5100088644,"8,100.00",AECOM LTD
TfGM,Transport,Environmental & Ecological Support Services,08/01/2016,5100088697,"7,012.50",AECOM LTD
TfGM,Transport,Community Engagement Services,08/01/2016,5100089014,"5,701.11",AECOM LTD
TfGM,Transport,Community Engagement Services,08/01/2016,5100089018,"2,253.26",AECOM LTD
TfGM,Transport,Research Services,08/01/2016,5100089020,"3,555.60",AECOM LTD
TfGM,Transport,CCTV Support Services,08/01/2016,5100089211,920.00,ALTRON COMMUNICATIONS EQUIPMENT LTD
TfGM,Transport,Driver Intervention Course Delivery Costs,08/01/2016,1900044814,984.60,B ASKHAM
TfGM,Transport,Cycle Training Scheme,08/01/2016,5100088982,"6,000.00",BIKE RIGHT!
TfGM,Transport,Capital Costs - Capital Project Main Contract Works,08/01/2016,1900044747,"109,176.00",BOLTON METROPOLITAN BOROUGH COUNCIL
TfGM,Transport,Capital Costs - Topographical Feasibility Support,08/01/2016,5100086771,"9,951.63",BOLTON METROPOLITAN BOROUGH COUNCIL
TfGM,Transport,Capital Costs - Topographical Feasibility Support,08/01/2016,5100088549,"(9,951.63)",BOLTON METROPOLITAN BOROUGH COUNCIL
TfGM,Transport,Driver Intervention Course Delivery Costs,08/01/2016,1900044823,656.40,BRECK SCHOOL OF MOTORING
TfGM,Transport,Driver Intervention Course Delivery Costs,08/01/2016,1900044841,"1,531.60",C HIRST
TfGM,Transport,Driver Intervention Course Delivery Costs,08/01/2016,1900044850,765.80,C MACCORMACK
TfGM,Transport,Insurance,08/01/2016,1900044884,907.40,CHANTRYCO INVESTMENTS LTD
TfGM,Transport,Driver Intervention Course Delivery Costs,08/01/2016,1900044825,"2,188.00",CRUISE DRIVER TRAINING
TfGM,Transport,Driver Intervention Course Delivery Costs,08/01/2016,1900044831,765.80,D ELLIS
TfGM,Transport,Driver Intervention Course Delivery Costs,08/01/2016,1900044837,"1,859.80",D HEATHCOTE
TfGM,Transport,Driver Intervention Course Delivery Costs,08/01/2016,1900044866,"1,094.00",D ROBINSON
TfGM,Transport,Driver Intervention Course Delivery Costs,08/01/2016,1900044875,"1,610.60",D WALSH
TfGM,Transport,Transport Planning & Monitoring Services,08/01/2016,5100088973,"4,887.50",DAVID GREGORY TRANSPORT PLANNING LT
TfGM,Transport,Capital Costs - Project Support Services,08/01/2016,5100089222,478.13,DAVID GREGORY TRANSPORT PLANNING LT
TfGM,Transport,Driver Intervention Course Delivery Costs,08/01/2016,1900044874,765.80,DAVID WALKER DRIVER TRAINING
TfGM,Transport,Driver Intervention Course Delivery Costs,08/01/2016,1900044864,875.20,DRIVER ACADEMY
TfGM,Transport,Driver Intervention Course Delivery Costs,08/01/2016,1900044856,656.40,DRIVETIME SCHOOL OF MOTORING
TfGM,Transport,Card Management Services,08/01/2016,5100089097,"2,002.93",ESP SYSTEX LTD
TfGM,Transport,Legal Services,08/01/2016,5100089214,"60,137.01",EVERSHEDS LLP
TfGM,Transport,Driver Intervention Course Delivery Costs,08/01/2016,1900044824,"1,641.00",G CLIFFE
TfGM,Transport,Driver Intervention Course Delivery Costs,08/01/2016,1900044867,"1,641.00",G ROBINSON
TfGM,Transport,Community Engagement Services,08/01/2016,1900044635,"5,000.00",GROUNDWORK MSSTT
TfGM,Transport,Driver Intervention Course Delivery Costs,08/01/2016,1900044827,875.20,H DICKINSON
TfGM,Transport,Driver Intervention Course Delivery Costs,08/01/2016,1900044840,"2,078.60",HOGHTON DRIVING SCHOOL
TfGM,Transport,Driver Intervention Course Delivery Costs,08/01/2016,1900044829,"1,094.00",I DUFF
TfGM,Transport,Print & Media,08/01/2016,5100089013,562.50,INTREPIDFISH  LIMITED
TfGM,Transport,Driver Intervention Course Delivery Costs,08/01/2016,1900044817,"1,525.51",J BOOTHROYD
TfGM,Transport,Driver Intervention Course Delivery Costs,08/01/2016,1900044859,656.40,J MURPHY
TfGM,Transport,Procurement Services,08/01/2016,5100089247,"2,850.00",JETFIRE ASSOCIATES LIMITED
TfGM,Transport,Research Services,08/01/2016,5100089023,"2,100.00",JMP CONSULTANTS LTD
TfGM,Corporate Services,Procurement Services,08/01/2016,5100089276,"9,900.00",JON MAYOR CONSULTING LTD
TfGM,Transport,Traffic Signal Works,08/01/2016,5100089249,473.26,JONES LIGHTING
TfGM,Transport,Driver Intervention Course Delivery Costs,08/01/2016,1900044845,935.98,K JONES
TfGM,Transport,Driver Intervention Course Delivery Costs,08/01/2016,1900044821,"1,531.60",L CHAPMAN
TfGM,Transport,Driver Intervention Course Delivery Costs,08/01/2016,1900044872,"1,094.00",M AHEADDRIVER TRAINING LTD
TfGM,Transport,Driver Intervention Course Delivery Costs,08/01/2016,1900044816,"2,297.40",M BOLTON DRIVER TRAINING
TfGM,Transport,Concessionary Reimbursement,08/01/2016,1900044904,"2,013.00",MAGNUM WHITELINE PRIVATE HIRE
TfGM,Transport,Driver Intervention Course Delivery Costs,08/01/2016,1900044818,"1,969.20",MARK BRENNAN DRIVER TRAINING LIMITE
TfGM,Transport,Metrolink Operating Costs,08/01/2016,5100089207,"6,120.00",METROLINK RATP DEV LTD
TfGM,Transport,Metrolink Operating Costs,08/01/2016,5100089235,"6,120.00",METROLINK RATP DEV LTD
TfGM,Transport,Driver Intervention Course Delivery Costs,08/01/2016,1900044855,"2,078.60",MORRIS SCHOOL OF MOTORING
TfGM,Transport,Smart Ticketing,08/01/2016,5100088465,"6,000.00",MORSON INTERNATIONAL
TfGM,Transport,Capital Costs - Programme and Project Management Services,08/01/2016,5100089002,"1,591.00",MORSON INTERNATIONAL
TfGM,Transport,Capital Costs - Programme and Project Management Services,08/01/2016,5100089027,"1,935.00",MORSON INTERNATIONAL
TfGM,Transport,Capital Costs - Programme and Project Management Services,08/01/2016,5100089028,"3,870.00",MORSON INTERNATIONAL
TfGM,Transport,Capital Costs - Programme and Project Management Services,08/01/2016,5100089029,"2,000.00",MORSON INTERNATIONAL
TfGM,Corporate Services,IS Support Services,08/01/2016,5100089107,"2,284.40",MORSON INTERNATIONAL
TfGM,Transport,Smart Ticketing,08/01/2016,5100089188,"6,000.00",MORSON INTERNATIONAL
TfGM,Transport,Capital Costs - Programme and Project Management Services,08/01/2016,5100089241,"1,664.00",MORSON INTERNATIONAL
TfGM,Transport,Capital Costs - Programme and Project Management Services,08/01/2016,5100089243,"1,664.00",MORSON INTERNATIONAL
TfGM,Transport,Capital Costs - Programme and Project Management Services,08/01/2016,5100089245,"1,664.00",MORSON INTERNATIONAL
TfGM,Transport,Rail Franchise,08/01/2016,1200037056,"3,659,029.14",NORTHERN RAIL LTD
TfGM,Transport,Driver Intervention Course Delivery Costs,08/01/2016,1900044852,547.00,O MAYSON
TfGM,Transport,Property & Equipment Maintenance,08/01/2016,5100088879,"2,350.00",OCCUPATIONAL MANAGEMENT CONSULTANTS
TfGM,Transport,Driver Intervention Course Delivery Costs,08/01/2016,1900044813,984.60,P AINSWORTH
TfGM,Transport,Driver Intervention Course Delivery Costs,08/01/2016,1900044819,656.40,P BROMLEY
TfGM,Transport,Driver Intervention Course Delivery Costs,08/01/2016,1900044822,"2,343.20",P CLARKE
TfGM,Transport,Driver Intervention Course Delivery Costs,08/01/2016,1900044834,"1,094.00",P GLEADALL
TfGM,Transport,Driver Intervention Course Delivery Costs,08/01/2016,1900044869,"1,999.58",PAS DRIVING
TfGM,Transport,Programme Management Services,08/01/2016,5100089275,"10,080.00",PATTERSON PROJECT MANAGEMENT LTD
TfGM,Transport,Concessionary Reimbursement,08/01/2016,1900044913,"1,166.00",PEMBERTON TAXIS
TfGM,Transport,Capital Costs - Programme and Project Management Services,08/01/2016,5100089217,"2,520.00",PWS TECHNICAL SERVICES (UK) LIMITED
TfGM,Transport,Capital Costs - Passenger Shelter Costs,08/01/2016,5100087494,"10,368.00",QUEENSBURY SHELTERS LIMITED
TfGM,Transport,Capital Costs - Passenger Shelter Costs,08/01/2016,5100087738,"10,368.00",QUEENSBURY SHELTERS LIMITED
TfGM,Transport,Capital Costs - Passenger Shelter Costs,08/01/2016,5100087740,"10,368.00",QUEENSBURY SHELTERS LIMITED
TfGM,Transport,Capital Costs - Passenger Shelter Costs,08/01/2016,5100088277,"10,368.00",QUEENSBURY SHELTERS LIMITED
TfGM,Transport,Capital Costs - Passenger Shelter Costs,08/01/2016,5100088278,"10,368.00",QUEENSBURY SHELTERS LIMITED
TfGM,Transport,Capital Costs - Passenger Shelter Costs,08/01/2016,5100089246,"2,750.65",QUEENSBURY SHELTERS LIMITED
TfGM,Transport,Driver Intervention Course Delivery Costs,08/01/2016,1900044836,"2,443.26",R GREENOUGH
TfGM,Transport,Driver Intervention Course Delivery Costs,08/01/2016,1900044839,"1,094.00",R HILL
TfGM,Corporate Services,Temporary Vacancy Cover,08/01/2016,5100089071,701.63,Robert Walters Plc
TfGM,Transport,Smart Ticketing,08/01/2016,5100089074,"2,340.00",Robert Walters Plc
TfGM,Transport,Cycle Training Scheme,08/01/2016,5100089075,"2,750.00",Robert Walters Plc
TfGM,Transport,Temporary Vacancy Cover,08/01/2016,5100089076,841.01,Robert Walters Plc
TfGM,Transport,CCTV Support Services,08/01/2016,5100089024,500.63,RS COMPONENTS LTD
TfGM,Transport,Driver Intervention Course Delivery Costs,08/01/2016,1900044858,"1,416.11",S MUIRHEAD
TfGM,Transport,Driver Intervention Course Delivery Costs,08/01/2016,1900044863,"1,853.71",S RATHORE
TfGM,Transport,Driver Intervention Course Delivery Costs,08/01/2016,1900044868,"1,203.40",S SHAH
TfGM,Transport,Driver Intervention Course Delivery Costs,08/01/2016,1900044861,656.40,SHELLIS SCHOOL OF MOTORING
TfGM,Transport,Driver Intervention Course Delivery Costs,08/01/2016,1900044835,875.20,SHIRLEYS DRIVING SCHOOL
TfGM,Transport,Traffic Signal Works,08/01/2016,5100089237,"14,870.25",SIEMENS PLC
TfGM,Transport,Traffic Signal Works,08/01/2016,5100089238,"88,293.81",SIEMENS PLC
TfGM,Transport,Driver Intervention Course Delivery Costs,08/01/2016,1900044832,"1,166.93",SMJ SCHOOL OF MOTORING
TfGM,Transport,Security Services,08/01/2016,1900044807,"2,235.68",ST MODWEN CORPORATE SERVICES LTD
TfGM,Transport,Print & Media,08/01/2016,5100089009,"15,000.00",STANLEY CHOW
TfGM,Transport,Heavy Rail Support Services,08/01/2016,5100089152,"10,000.00",STATIONGURU LIMITED
TfGM,Transport,Planning Support Services,08/01/2016,5100089272,"6,908.17",STEER DAVIES GLEEVE LTD
TfGM,Transport,Driver Intervention Course Delivery Costs,08/01/2016,1900044848,"1,969.20",STEVEN LLOYD APPROVED SCHOOL OF MOT
TfGM,Transport,Capital Costs - Public Art,08/01/2016,5100089205,"1,058.46",THE HAMILTON PROJECT
TfGM,Transport,Print & Media,08/01/2016,5100085830,986.40,THE IMAGE GROUP
TfGM,Transport,Print & Media,08/01/2016,5100088986,"11,500.00",THE IMAGE GROUP
TfGM,Transport,Capital Costs - Computer and Communications Equipment,08/01/2016,5100086177,938.00,TOTAL COMPUTERS LTD
TfGM,Transport,Capital Costs - Computer and Communications Equipment,08/01/2016,5100088412,"1,253.00",TOTAL COMPUTERS LTD
TfGM,Transport,IS Consumables,08/01/2016,5100088877,"3,422.92",TOTAL COMPUTERS LTD
TfGM,Transport,Capital Costs - Computer and Communications Equipment,08/01/2016,5100089005,"4,090.00",TOTAL COMPUTERS LTD
TfGM,Corporate Services,IS Consumables,08/01/2016,5100089007,701.08,TOTAL COMPUTERS LTD
TfGM,Transport,Utilities & Energy,08/01/2016,1900044879,"1,363.30",UNITED UTILITIES WATER PLC
TfGM,Transport,Driver Intervention Course Delivery Costs,08/01/2016,1900044833,"1,963.11",VINCENT'S DRIVING SCHOOL
TfGM,Transport,Driver Intervention Course Delivery Costs,08/01/2016,1900044844,984.60,WIRRAL DRIVING LTD
TfGM,Transport,Capital Costs - Programme and Project Management Services,08/01/2016,5100089255,"149,915.16",WSP UK LTD
TfGM,Transport,Capital Costs - Programme and Project Management Services,08/01/2016,5100089257,"196,136.68",WSP UK LTD
TfGM,Transport,Capital Costs - Programme and Project Management Services,08/01/2016,5100089258,"29,388.80",WSP UK LTD
TfGM,Transport,Infrastructure Support Services,08/01/2016,5100089259,"73,482.24",WSP UK LTD
TfGM,Transport,Engineering Support Services,08/01/2016,5100089260,"8,704.00",WSP UK LTD
TfGM,Transport,Capital Costs - Programme and Project Management Services,08/01/2016,5100089262,"35,957.67",WSP UK LTD
TfGM,Transport,Community Engagement Services,12/01/2016,5100089032,"8,822.43",AECOM LTD
TfGM,Transport,Community Engagement Services,12/01/2016,5100089289,"9,792.00",AECOM LTD
TfGM,Transport,Capital Costs - Programme and Project Management Services,12/01/2016,5100089302,"25,725.00",AECOM LTD
TfGM,Transport,Street Furniture Equipment,12/01/2016,5100089334,617.12,AMARI PLASTICS PLC
TfGM,Transport,Capital Costs - Environmental & Ecological Support Services,12/01/2016,5100088949,"1,548.00",ARCADIS CONSULTING (UK) LTD
TfGM,Transport,Capital Costs - Environmental & Ecological Support Services,12/01/2016,5100088950,"1,599.43",ARCADIS CONSULTING (UK) LTD
TfGM,Transport,Capital Costs - Environmental & Ecological Support Services,12/01/2016,5100088965,887.52,ARCADIS CONSULTING (UK) LTD
TfGM,Transport,Capital Costs - Environmental & Ecological Support Services,12/01/2016,5100088967,"1,548.00",ARCADIS CONSULTING (UK) LTD
TfGM,Transport,Design Support Services,12/01/2016,5100089025,"9,900.00",ARCADIS LLP
TfGM,Transport,Design Support Services,12/01/2016,5100089220,"4,500.00",ARCADIS LLP
TfGM,Transport,Capital Costs - Public Art,12/01/2016,5100089305,640.00,ASTRA SIGNS
TfGM,Transport,Driver Intervention Course Delivery Costs,12/01/2016,5100089373,"1,641.00",B DAVIES
TfGM,Transport,Print & Media,12/01/2016,5100089287,510.00,BECKY ROBERTS
TfGM,Transport,Programme and Project Management Services,12/01/2016,5100089303,"9,800.00",BLACC CONSULTING LLP
TfGM,Transport,Capital Costs - LRT Vehicles,12/01/2016,5100089466,"209,500.00",BOMBARDIER TRANSPORTATION UK LTD
TfGM,Transport,Community Transport Support Services,12/01/2016,5100089459,"2,984.21",BREAKTHROUGH UK LTD
TfGM,Transport,Community Transport Support Services,12/01/2016,5100089462,"1,072.77",BREAKTHROUGH UK LTD
TfGM,Transport,Paper and Printing Consumables,12/01/2016,5100089492,"4,651.14",CANON UK LTD
TfGM,Transport,Print & Media,12/01/2016,5100089361,"5,968.46",CARAT MEDIA UK LIMITED
TfGM,Transport,Print & Media,12/01/2016,5100089365,"1,475.67",CARAT MEDIA UK LIMITED
TfGM,Transport,Print & Media,12/01/2016,5100089370,"7,558.05",CARAT MEDIA UK LIMITED
TfGM,Transport,Print & Media,12/01/2016,5100089374,"3,567.10",CARAT MEDIA UK LIMITED
TfGM,Transport,Print & Media,12/01/2016,5100089378,"8,499.49",CARAT MEDIA UK LIMITED
TfGM,Transport,Print & Media,12/01/2016,5100089379,"5,416.51",CARAT MEDIA UK LIMITED
TfGM,Transport,Print & Media,12/01/2016,5100089380,"7,124.92",CARAT MEDIA UK LIMITED
TfGM,Transport,Print & Media,12/01/2016,5100089381,"1,585.62",CARAT MEDIA UK LIMITED
TfGM,Transport,Print & Media,12/01/2016,5100089389,"2,777.06",CARAT MEDIA UK LIMITED
TfGM,Transport,Capital Costs - Engineering Support Services,12/01/2016,5100088974,"1,125.00",CDI ANDERSELITE LTD
TfGM,Transport,Print & Media,12/01/2016,5100089252,616.00,CHAPEL PRESS LTD
TfGM,Transport,Print & Media,12/01/2016,5100089253,519.00,CHAPEL PRESS LTD
TfGM,Transport,Driver Intervention Course Delivery Costs,12/01/2016,5100089286,"1,203.40",CPC TRAINING PROVIDER LTD
TfGM,Transport,Driver Intervention Course Delivery Costs,12/01/2016,5100089461,598.00,DRAGON DRIVING
TfGM,Transport,Traffic Signal Works,12/01/2016,5100089430,560.00,EASYNET GLOBAL SERVICES
TfGM,Transport,Property & Equipment Maintenance,12/01/2016,5100088748,"11,957.66",FES FM LTD
TfGM,Transport,Capital Costs - Capital Project Main Contract Works,12/01/2016,5100089509,"60,653.99",GEORGE COX AND SONS LTD
TfGM,Transport,Capital Costs - Capital Project Main Contract Works,12/01/2016,5100089511,"386,333.34",GEORGE COX AND SONS LTD
TfGM,Transport,Property & Equipment Maintenance,12/01/2016,5100089316,517.40,GILBEY ELECTRICAL WHOLESALERS LTD
TfGM,Transport,Accessible Transport,12/01/2016,1200037073,"388,084.00",GMATL
TfGM,Transport,Driver Intervention Course Delivery Costs,12/01/2016,5100089425,"2,085.42",HOLIDAY INN MANCHESTER CENTRAL PARK
TfGM,Transport,Driver Intervention Course Delivery Costs,12/01/2016,5100089426,"2,245.83",HOLIDAY INN MANCHESTER CENTRAL PARK
TfGM,Transport,Driver Intervention Course Delivery Costs,12/01/2016,5100089428,"1,925.00",HOLIDAY INN MANCHESTER CENTRAL PARK
TfGM,Transport,Driver Intervention Course Delivery Costs,12/01/2016,5100089434,"1,443.75",HOLIDAY INN MANCHESTER CENTRAL PARK
TfGM,Transport,Traffic Signal Works,12/01/2016,5100087302,"1,928.70",JONES LIGHTING
TfGM,Transport,Capital Costs - Insurance,12/01/2016,5100089404,"(3,534.42)",LOCKTON COMPANIES LLP
TfGM,Transport,Capital Costs - Insurance,12/01/2016,5100089405,"9,534.42",LOCKTON COMPANIES LLP
TfGM,Transport,Print & Media,12/01/2016,5100089283,645.00,MANCHESTER CITY COUNCIL
TfGM,Transport,Security Services,12/01/2016,5100088295,957.38,MARPOL SECURITY LIMITED
TfGM,Transport,Replacement Bus Services,12/01/2016,5100088589,"32,520.00",METROLINK RATP DEV LTD
TfGM,Transport,Replacement Bus Services,12/01/2016,5100089277,"13,330.00",METROLINK RATP DEV LTD
TfGM,Transport,Print & Media,12/01/2016,5100089278,"2,510.00",METROLINK RATP DEV LTD
TfGM,Transport,Metrolink Operating Costs,12/01/2016,5100089282,"728,169.19",METROLINK RATP DEV LTD
TfGM,Transport,Print & Media,12/01/2016,5100089467,"1,080.00",MIDESIGN
TfGM,Transport,Capital Costs - Rail Construction Works,12/01/2016,5100089318,"27,795.94",NETWORK RAIL
TfGM,Transport,Capital Costs - Rail Construction Works,12/01/2016,5100089376,"2,494.55",NETWORK RAIL
TfGM,Transport,Print & Media,12/01/2016,5100089359,"2,060.00",PAPER FILMS LTD
TfGM,Transport,Programme and Project Management Services,12/01/2016,5100089394,"7,543.00",PEAK PERFORMANCE PROFESSIONAL CONTR
TfGM,Transport,Financial and Commercial Support Services,12/01/2016,5100089433,"10,497.50",PEAK PERFORMANCE PROFESSIONAL CONTR
TfGM,Transport,Capital Costs - Programme and Project Management Services,12/01/2016,5100089299,"2,058.55",PERTEMPS PROFESSIONAL STAFFING LTD
TfGM,Transport,Heavy Rail Support Services,12/01/2016,5100088862,"4,770.00",PRACTICUS LIMITED
TfGM,Transport,Capital Costs - Programme and Project Management Services,12/01/2016,5100089483,"1,621.40",PRACTICUS LIMITED
TfGM,Transport,Temporary Vacancy Cover,12/01/2016,5100089396,"3,920.00",PWS TECHNICAL SERVICES (UK) LIMITED
TfGM,Transport,Capital Costs - Programme and Project Management Services,12/01/2016,5100089456,"2,800.00",PWS TECHNICAL SERVICES (UK) LIMITED
TfGM,Transport,Vehicle Repairs & Maintenance,12/01/2016,5100087100,"126,000.00",RIVERSIDE TRUCK RENTAL
TfGM,Transport,Vehicle Repairs & Maintenance,12/01/2016,5100088800,"(126,000.00)",RIVERSIDE TRUCK RENTAL
TfGM,Transport,Vehicle Repairs & Maintenance,12/01/2016,5100089353,"16,517.96",RIVERSIDE TRUCK RENTAL
TfGM,Transport,Vehicle Repairs & Maintenance,12/01/2016,5100089356,"18,140.52",RIVERSIDE TRUCK RENTAL
TfGM,Transport,Vehicle Repairs & Maintenance,12/01/2016,5100089358,"17,522.92",RIVERSIDE TRUCK RENTAL
TfGM,Transport,Vehicle Repairs & Maintenance,12/01/2016,5100089360,638.00,RIVERSIDE TRUCK RENTAL
TfGM,Transport,Vehicle Repairs & Maintenance,12/01/2016,5100089362,522.00,RIVERSIDE TRUCK RENTAL
TfGM,Transport,Vehicle Repairs & Maintenance,12/01/2016,5100089363,"14,264.80",RIVERSIDE TRUCK RENTAL
TfGM,Transport,Vehicle Repairs & Maintenance,12/01/2016,5100089364,638.00,RIVERSIDE TRUCK RENTAL
TfGM,Transport,Vehicle Repairs & Maintenance,12/01/2016,5100089366,522.00,RIVERSIDE TRUCK RENTAL
TfGM,Transport,Capital Costs - Programme and Project Management Services,12/01/2016,5100089294,924.30,Robert Walters Plc
TfGM,Corporate Services,Temporary Vacancy Cover,12/01/2016,5100089464,"1,050.50",Robert Walters Plc
TfGM,Transport,CCTV Support Services,12/01/2016,5100089320,"6,748.70",ROSGAL LTD
TfGM,Transport,CCTV Support Services,12/01/2016,5100089322,951.90,ROSGAL LTD
TfGM,Transport,CCTV Support Services,12/01/2016,5100089323,"4,815.24",ROSGAL LTD
TfGM,Transport,CCTV Support Services,12/01/2016,5100089324,840.84,ROSGAL LTD
TfGM,Transport,CCTV Support Services,12/01/2016,5100089325,"4,297.81",ROSGAL LTD
TfGM,Transport,CCTV Support Services,12/01/2016,5100089326,702.54,ROSGAL LTD
TfGM,Transport,CCTV Support Services,12/01/2016,5100089332,"4,408.48",ROSGAL LTD
TfGM,Transport,Driver Intervention Course Delivery Costs,12/01/2016,5100089435,875.20,S CHARLSON
TfGM,Transport,Capital Costs - Engineering Support Services,12/01/2016,5100089481,"1,350.00",STEPHEN J FIRTH
TfGM,Transport,Project Support Services,12/01/2016,5100088847,"2,979.00",WSP UK LTD
TfGM,Transport,Capital Costs - Programme and Project Management Services,12/01/2016,5100089256,"140,396.51",WSP UK LTD
TfGM,Transport,Capital Costs - Project Management Services,12/01/2016,5100089261,"67,202.95",WSP UK LTD
TfGM,Transport,Driver Intervention Course Delivery Costs,14/01/2016,5100089197,"1,203.40",PETERS DRIVING SCHOOL
TfGM,Transport,Supported Bus Services,15/01/2016,1900045001,"2,500.00",5 STAR PRIVATE HIRE
TfGM,Transport,Community Engagement Services,15/01/2016,5100089695,"(8,654.48)",AECOM LTD
TfGM,Transport,Community Engagement Services,15/01/2016,5100089696,"10,818.10",AECOM LTD
TfGM,Transport,Capital Costs - Engineering Support Services,15/01/2016,5100089721,"(1,746.58)",AECOM LTD
TfGM,Transport,Smart Ticketing,15/01/2016,5100089646,"2,310.00",AMSACOM LIMITED
TfGM,Transport,Print & Media,15/01/2016,5100089625,"3,500.00",ANGELA SCHORAH COMMUNICATIONS
TfGM,Transport,Supported Bus Services,15/01/2016,1900045002,"26,042.29",ARRIVA MANCHESTER
TfGM,Transport,Supported Bus Services,15/01/2016,1900045003,"48,969.49",ARRIVA MANCHESTER
TfGM,Transport,Supported Bus Services,15/01/2016,1900045004,"3,763.33",ARRIVA MANCHESTER
TfGM,Transport,Concessionary Reimbursement,15/01/2016,1900045065,"310,500.00",ARRIVA MANCHESTER
TfGM,Transport,Print & Media,15/01/2016,5100089520,"1,950.00",ASTRA SIGNS
TfGM,Transport,Signage Costs,15/01/2016,5100089558,675.00,ASTRA SIGNS
TfGM,Transport,Signage Costs,15/01/2016,5100089559,"1,450.00",ASTRA SIGNS
TfGM,Transport,Capital Costs - Project Support Services,15/01/2016,5100089555,907.20,ATKINS LTD
TfGM,Transport,Capital Costs - Contract Administration Services,15/01/2016,5100089592,"16,575.00",ATKINS LTD
TfGM,Transport,Capital Costs - Project Support Services,15/01/2016,5100089671,"10,476.75",ATKINS LTD
TfGM,Transport,Supported Bus Services,15/01/2016,1900044978,"8,500.82",ATLANTIC TRAVEL GB
TfGM,Transport,Capital Costs - Legal Services,15/01/2016,5100089600,"8,480.00",AXIS PROPERTY CONSULTANCY LLP
TfGM,Transport,Capital Costs - Legal Services,15/01/2016,5100089637,"14,100.00",AXIS PROPERTY CONSULTANCY LLP
TfGM,Transport,Research Services,15/01/2016,5100088374,"24,500.00",BDRC CONTINENTAL LTD
TfGM,Transport,Supported Bus Services,15/01/2016,1900044982,"112,621.61",BELLE VUE (MANCHESTER) LTD
TfGM,Transport,Supported Bus Services,15/01/2016,1900044983,"7,880.83",BELLE VUE (MANCHESTER) LTD
TfGM,Transport,Supported Bus Services,15/01/2016,1900044984,647.82,BELLE VUE (MANCHESTER) LTD
TfGM,Transport,Concessionary Reimbursement,15/01/2016,1900045068,"2,005.00",BELLE VUE (MANCHESTER) LTD
TfGM,Transport,CCTV Support Services,15/01/2016,5100089629,"4,000.00",BLUE NETWORK SOLUTIONS LTD
TfGM,Transport,Print & Media,15/01/2016,5100089215,"1,693.30",BLUETREE DESIGN AND PRINT LTD
TfGM,Transport,Print & Media,15/01/2016,5100089216,516.00,BLUETREE DESIGN AND PRINT LTD
TfGM,Transport,Capital Costs - LRT Vehicles,15/01/2016,5100089747,"431,175.00",BOMBARDIER TRANSPORTATION UK LTD
TfGM,Transport,Community Transport Support Services,15/01/2016,5100089469,"2,101.09",BREAKTHROUGH UK LTD
TfGM,Transport,Supported Bus Services,15/01/2016,1900045012,"3,166.67",BULLITT CARS
TfGM,Transport,Supported Bus Services,15/01/2016,1900044998,"12,306.82",BULLOCKS
TfGM,Transport,Concessionary Reimbursement,15/01/2016,1900045066,"2,300.00",BULLOCKS
TfGM,Transport,Concessionary Reimbursement,15/01/2016,1900045067,"13,000.00",BURNLEY AND PENDLE
TfGM,Transport,Concessionary Reimbursement,15/01/2016,1900045069,"24,700.00",CENTREBUS LTD
TfGM,Transport,Property & Equipment Maintenance,15/01/2016,5100089508,"20,251.50",CHARGE YOUR CAR LTD
TfGM,Transport,Supported Bus Services,15/01/2016,1900044961,"8,570.00",CHECKMATE TRANSPORT LTD
TfGM,Transport,Supported Bus Services,15/01/2016,1900045015,"7,772.72",CHESTERS COACHES
TfGM,Transport,Supported Bus Services,15/01/2016,1900045013,"4,836.36",CI WALLEY TA RINGWAY MINIBUS HIRE
TfGM,Transport,Concessionary Reimbursement,15/01/2016,1900045050,600.00,COZY CARS
TfGM,Transport,Print & Media,15/01/2016,5100089596,"5,622.91",CTC
TfGM,Transport,Traffic Management and Monitoring Services,15/01/2016,5100089463,"4,662.66",CUBIC TRANSPORTATION SYSTEMS (ITMS)
TfGM,Transport,Supported Bus Services,15/01/2016,1900044975,"10,376.75",CUMFY BUS LTD
TfGM,Transport,Supported Bus Services,15/01/2016,1900044976,"42,088.33",CUMFY BUS LTD
TfGM,Transport,Supported Bus Services,15/01/2016,1900044977,"4,229.33",CUMFY BUS LTD
TfGM,Transport,Concessionary Reimbursement,15/01/2016,1900045071,"32,035.00",CUMFY BUS LTD
TfGM,Corporate Services,IS Consumables,15/01/2016,5100089688,"7,850.00",DIGITAL EXCHANGE PRODUCTS LTD
TfGM,Transport,Supported Bus Services,15/01/2016,1900044974,"12,944.83",ECO TRAVEL
TfGM,Transport,Cycle Training Scheme,15/01/2016,5100089654,"3,402.70",EDINBURGH BICYCLE COOPERATIVE LTD
TfGM,Transport,Cycle Training Scheme,15/01/2016,5100089658,"1,540.00",EDINBURGH BICYCLE COOPERATIVE LTD
TfGM,Corporate Services,IS Software & Maintenance,15/01/2016,5100089568,"82,823.00",EP MORRIS
TfGM,Corporate Services,IS Software & Maintenance,15/01/2016,5100089611,"(50,968.00)",EP MORRIS
TfGM,Transport,Capital Costs - Programme and Project Management Services,15/01/2016,5100089628,"12,300.00",EXPERIS LTD
TfGM,Transport,Concessionary Reimbursement,15/01/2016,1900045073,"3,000.00",FE FINCH
TfGM,Transport,Concessionary Reimbursement,15/01/2016,1900045072,"8,500.00",FIRST CALDERLINE
TfGM,Transport,Supported Bus Services,15/01/2016,1700028644,"(2,109.41)",FIRST MANCHESTER
TfGM,Transport,Supported Bus Services,15/01/2016,1900044995,"333,473.33",FIRST MANCHESTER
TfGM,Transport,Supported Bus Services,15/01/2016,1900044996,"123,993.13",FIRST MANCHESTER
TfGM,Transport,Supported Bus Services,15/01/2016,1900044997,"8,741.92",FIRST MANCHESTER
TfGM,Transport,Print & Media,15/01/2016,5100089465,"1,234.00",FRETWELL PRINT AND DIRECT MAIL
TfGM,Transport,Supported Bus Services,15/01/2016,1900045019,"28,173.73",GB COACHES
TfGM,Transport,Supported Bus Services,15/01/2016,1900045020,738.09,GB COACHES
TfGM,Transport,Supported Bus Services,15/01/2016,1900044973,"2,873.67",GMATL
TfGM,Transport,Supported Bus Services,15/01/2016,1900044968,"52,691.83",GO GOODWINS COACHES LTD
TfGM,Transport,Supported Bus Services,15/01/2016,1900044969,"80,184.58",GO GOODWINS COACHES LTD
TfGM,Transport,Supported Bus Services,15/01/2016,1900044970,"8,161.09",GO GOODWINS COACHES LTD
TfGM,Transport,Supported Bus Services,15/01/2016,1900045030,"9,750.00",GO GOODWINS COACHES LTD
TfGM,Transport,Supported Bus Services,15/01/2016,1900045009,"14,034.37",GREEN TRIANGLE BUSES LTD
TfGM,Transport,Supported Bus Services,15/01/2016,1900045010,"139,345.42",GREEN TRIANGLE BUSES LTD
TfGM,Transport,Supported Bus Services,15/01/2016,1900045011,"6,663.76",GREEN TRIANGLE BUSES LTD
TfGM,Transport,Concessionary Reimbursement,15/01/2016,1900045074,"80,727.00",GREEN TRIANGLE BUSES LTD
TfGM,Transport,Supported Bus Services,15/01/2016,1900044962,"2,333.33",HORWICH PRIVATE HIRE LIMITED
TfGM,Transport,Concessionary Reimbursement,15/01/2016,1900045033,564.25,HORWICH PRIVATE HIRE LIMITED
TfGM,Transport,Concessionary Reimbursement,15/01/2016,1900045075,"3,600.00",HUDDERSFIELD BUS COMPANY
TfGM,Transport,Concessionary Reimbursement,15/01/2016,1900045051,"2,004.00",Iqbal Chohan T/A STAR CARS
TfGM,Transport,Concessionary Reimbursement,15/01/2016,1900045052,714.00,Iqbal Chohan T/A STAR CARS
TfGM,Transport,Supported Bus Services,15/01/2016,1900045006,"9,180.09",JIM STONES COACHES
TfGM,Transport,Supported Bus Services,15/01/2016,1900045007,"12,841.84",JIM STONES COACHES
TfGM,Transport,Concessionary Reimbursement,15/01/2016,1900045076,"22,351.00",JIM STONES COACHES
TfGM,Transport,"Rent, Rates & Service Charges",15/01/2016,1900044883,"2,830.00",JONES LANG LASALLE LTD
TfGM,Transport,Capital Costs - Capital Project Main Contract Works,15/01/2016,5100089529,"1,195,059.59",KIER CONSTRUCTION - NORTHERN
TfGM,Transport,Capital Costs - Legal Services,15/01/2016,5100089698,"2,800.00",LAMBERT SMITH HAMPTON
TfGM,Transport,Concessionary Reimbursement,15/01/2016,1900045077,"21,000.00",LANCASHIRE UTD
TfGM,Transport,Property Support Services,15/01/2016,5100089640,"4,825.00",LESLIE ROBERTS AND CO LTD
TfGM,Transport,Capital Costs - Insurance,15/01/2016,5100089535,"8,212.50",LOCKTON COMPANIES LLP
TfGM,Transport,Capital Costs - Insurance,15/01/2016,5100089536,"16,425.00",LOCKTON COMPANIES LLP
TfGM,Transport,Capital Costs - Insurance,15/01/2016,5100089601,"8,212.50",LOCKTON COMPANIES LLP
TfGM,Transport,Supported Bus Services,15/01/2016,1900044985,"54,966.33",M TRAVEL
TfGM,Transport,Supported Bus Services,15/01/2016,1900044986,"26,741.33",M TRAVEL
TfGM,Transport,Supported Bus Services,15/01/2016,1900044987,"1,368.73",M TRAVEL
TfGM,Transport,Concessionary Reimbursement,15/01/2016,1900045078,"5,000.00",M TRAVEL
TfGM,Transport,Capital Costs - Programme and Project Management Services,15/01/2016,5100089288,"5,400.00",MACE LTD
TfGM,Transport,Supported Bus Services,15/01/2016,1900044963,"39,448.67",MANCHESTER COMMUNITY TRANSPORT
TfGM,Transport,Supported Bus Services,15/01/2016,1900044964,"217,055.08",MANCHESTER COMMUNITY TRANSPORT
TfGM,Transport,Supported Bus Services,15/01/2016,1900044965,"11,752.25",MANCHESTER COMMUNITY TRANSPORT
TfGM,Transport,Concessionary Reimbursement,15/01/2016,1900045035,571.80,MANCHESTER COMMUNITY TRANSPORT
TfGM,Transport,Concessionary Reimbursement,15/01/2016,1900045079,"51,000.00",MANCHESTER COMMUNITY TRANSPORT
TfGM,Transport,Programme Assurance Services,15/01/2016,5100089707,"19,461.00",MAZARS LLP
TfGM,Transport,Property Support Services,15/01/2016,5100089538,497.59,MONTAGU EVANS
TfGM,Transport,Property Support Services,15/01/2016,5100089543,497.59,MONTAGU EVANS
TfGM,Transport,Capital Costs - Design Support Services,15/01/2016,5100089437,"29,003.00",MOTT MACDONALD LTD
TfGM,Transport,Capital Costs - IS Support Services,15/01/2016,5100089554,"4,860.00",MOTT MACDONALD LTD
TfGM,Transport,Capital Costs - IS Support Services,15/01/2016,5100089556,"1,860.00",MOTT MACDONALD LTD
TfGM,Transport,Capital Costs - Heavy Rail Support Services,15/01/2016,5100089684,"65,762.09",NETWORK RAIL
TfGM,Transport,Programme and Project Management Services,15/01/2016,5100089626,"9,540.00",NORTHCLIFFE LTD
TfGM,Transport,Programme and Project Management Services,15/01/2016,5100089677,981.50,NORTHCLIFFE LTD
TfGM,Transport,Concessionary Reimbursement,15/01/2016,1900045027,"62,000.00",NORTHERN RAIL LIMITED
TfGM,Transport,Supported Bus Services,15/01/2016,1900044971,"40,711.75",OLYMPIA TRAVEL
TfGM,Transport,Capital Costs - Programme and Project Management Services,15/01/2016,5100089458,823.42,PERTEMPS PROFESSIONAL STAFFING LTD
TfGM,Transport,Traffic and Transportation Surveys,15/01/2016,5100089549,438.79,PLUSWORK LTD
TfGM,Transport,Supported Bus Services,15/01/2016,1900045025,"98,782.34",R S TYRER LTD
TfGM,Transport,Supported Bus Services,15/01/2016,1900045026,"1,762.72",R S TYRER LTD
TfGM,Transport,Supported Bus Services,15/01/2016,1900044966,"101,000.00",RADIO CABS T/A ECO TRAVEL
TfGM,Transport,Supported Bus Services,15/01/2016,1900044967,"19,682.33",RADIO CABS T/A ECO TRAVEL
TfGM,Transport,Concessionary Reimbursement,15/01/2016,1900045036,"3,372.15",RADIO CABS T/A ECO TRAVEL
TfGM,Corporate Services,Temporary Vacancy Cover,15/01/2016,5100088815,"1,380.60",Robert Walters Plc
TfGM,Transport,Smart Ticketing,15/01/2016,5100089444,"2,201.10",Robert Walters Plc
TfGM,Transport,Cycle Training Scheme,15/01/2016,5100089448,"2,750.00",Robert Walters Plc
TfGM,Transport,Temporary Vacancy Cover,15/01/2016,5100089449,841.01,Robert Walters Plc
TfGM,Corporate Services,Temporary Vacancy Cover,15/01/2016,5100089450,"2,250.00",Robert Walters Plc
TfGM,Corporate Services,Temporary Vacancy Cover,15/01/2016,5100089454,701.63,Robert Walters Plc
TfGM,Corporate Services,Temporary Vacancy Cover,15/01/2016,5100089730,(815.20),Robert Walters Plc
TfGM,Transport,Concessionary Reimbursement,15/01/2016,1900045092,"4,000.00",ROJAY SERVICES LTD T/A WIGAN COACHW
TfGM,Transport,Supported Bus Services,15/01/2016,1900044979,"133,121.60",ROSSENDALE TRANSPORT
TfGM,Transport,Supported Bus Services,15/01/2016,1900044980,"59,458.60",ROSSENDALE TRANSPORT
TfGM,Transport,Supported Bus Services,15/01/2016,1900044981,"12,492.16",ROSSENDALE TRANSPORT
TfGM,Transport,Concessionary Reimbursement,15/01/2016,1900045081,"95,000.00",ROSSENDALE TRANSPORT
TfGM,Transport,Postage Costs,15/01/2016,5100089666,481.21,ROYAL MAIL GROUP PLC
TfGM,Transport,Metrolink Operating Costs,15/01/2016,5100079833,"16,844.49",SCHEIDT & BACHMANN GMBH
TfGM,Transport,Metrolink Operating Costs,15/01/2016,5100079835,"11,692.31",SCHEIDT & BACHMANN GMBH
TfGM,Transport,Metrolink Operating Costs,15/01/2016,5100079838,"20,174.24",SCHEIDT & BACHMANN GMBH
TfGM,Transport,Metrolink Operating Costs,15/01/2016,5100080126,"13,263.97",SCHEIDT & BACHMANN GMBH
TfGM,Transport,Metrolink Operating Costs,15/01/2016,5100086175,"7,541.50",SCHEIDT & BACHMANN GMBH
TfGM,Transport,Metrolink Operating Costs,15/01/2016,5100087643,"1,636.88",SCHEIDT & BACHMANN GMBH
TfGM,Transport,Metrolink Operating Costs,15/01/2016,5100087645,"21,959.21",SCHEIDT & BACHMANN GMBH
TfGM,Transport,Metrolink Operating Costs,15/01/2016,5100088911,"17,476.58",SCHEIDT & BACHMANN GMBH
TfGM,Transport,Metrolink Operating Costs,15/01/2016,5100088913,"23,560.38",SCHEIDT & BACHMANN GMBH
TfGM,Transport,Capital Costs - Software Support Services,15/01/2016,5100088961,"7,350.00",SCHEIDT & BACHMANN GMBH
TfGM,Transport,Metrolink Operating Costs,15/01/2016,5100089190,"10,628.80",SCHEIDT & BACHMANN GMBH
TfGM,Transport,Capital Costs - Software Support Services,15/01/2016,5100089219,"4,375.00",SCHEIDT & BACHMANN GMBH
TfGM,Transport,Metrolink Operating Costs,15/01/2016,5100089226,"6,810.00",SCHEIDT & BACHMANN GMBH
TfGM,Transport,Supported Bus Services,15/01/2016,1900045021,"69,496.08",SELWYNS TRAVEL LTD
TfGM,Transport,Supported Bus Services,15/01/2016,1900045022,940.73,SELWYNS TRAVEL LTD
TfGM,Transport,Capital Costs - Print & Media,15/01/2016,5100089514,"1,086.97",SERVICEPOINT UK
TfGM,Transport,Traffic Signal Works,15/01/2016,5100089576,"3,492.10",SIEMENS PLC
TfGM,Transport,Traffic Signal Works,15/01/2016,5100089577,"4,403.18",SIEMENS PLC
TfGM,Transport,Traffic Signal Works,15/01/2016,5100089578,"9,676.11",SIEMENS PLC
TfGM,Transport,Traffic Signal Works,15/01/2016,5100089579,"21,111.40",SIEMENS PLC
TfGM,Transport,Traffic Signal Works,15/01/2016,5100089580,"1,498.62",SIEMENS PLC
TfGM,Transport,Traffic Signal Works,15/01/2016,5100089581,"3,823.13",SIEMENS PLC
TfGM,Transport,Traffic Signal Works,15/01/2016,5100089582,"23,721.08",SIEMENS PLC
TfGM,Transport,Traffic Signal Works,15/01/2016,5100089583,"5,345.65",SIEMENS PLC
TfGM,Transport,Traffic Signal Works,15/01/2016,5100089584,"8,826.60",SIEMENS PLC
TfGM,Transport,Traffic Signal Works,15/01/2016,5100089585,"2,504.20",SIEMENS PLC
TfGM,Transport,Traffic Signal Works,15/01/2016,5100089586,"3,812.86",SIEMENS PLC
TfGM,Transport,Traffic Signal Works,15/01/2016,5100089587,"13,598.45",SIEMENS PLC
TfGM,Transport,Traffic Signal Works,15/01/2016,5100089590,"14,315.86",SIEMENS PLC
TfGM,Transport,Traffic Signal Works,15/01/2016,5100089729,"(1,571.37)",SIEMENS PLC
TfGM,Transport,Training,15/01/2016,5100089661,"2,862.00",ST JOHN AMBULANCE
TfGM,Transport,Supported Bus Services,15/01/2016,1900044991,"242,829.79",STAGECOACH SERVICES LTD
TfGM,Transport,Supported Bus Services,15/01/2016,1900044992,"336,383.12",STAGECOACH SERVICES LTD
TfGM,Transport,Supported Bus Services,15/01/2016,1900044993,"32,447.30",STAGECOACH SERVICES LTD
TfGM,Transport,Pass Withdrawal Scheme,15/01/2016,1900045058,780.00,STAGECOACH SERVICES LTD
TfGM,Transport,Concessionary Reimbursement,15/01/2016,1900045083,"1,331,250.00",STAGECOACH SERVICES LTD
TfGM,Transport,Concessionary Reimbursement,15/01/2016,1900045084,"18,500.00",STAGECOACH SERVICES LTD
TfGM,Transport,Concessionary Reimbursement,15/01/2016,1900045085,"262,750.00",STAGECOACH SERVICES LTD
TfGM,Transport,Supported Bus Services,15/01/2016,1900045023,"27,710.18",STOTTS TOURS
TfGM,Transport,Supported Bus Services,15/01/2016,1900045024,"69,035.09",STOTTS TOURS
TfGM,Transport,Concessionary Reimbursement,15/01/2016,1900045086,"16,000.00",STOTTS TOURS
TfGM,Transport,Utilities & Energy,15/01/2016,1900044923,599.83,SWALEC
TfGM,Transport,Utilities & Energy,15/01/2016,1900044924,"2,777.63",SWALEC
TfGM,Transport,Utilities & Energy,15/01/2016,1900044926,"1,810.90",SWALEC
TfGM,Transport,Utilities & Energy,15/01/2016,1900044927,435.14,SWALEC
TfGM,Transport,Utilities & Energy,15/01/2016,1900044929,872.65,SWALEC
TfGM,Transport,Utilities & Energy,15/01/2016,1900044932,"1,775.27",SWALEC
TfGM,Transport,Utilities & Energy,15/01/2016,1900044934,"1,085.74",SWALEC
TfGM,Transport,Utilities & Energy,15/01/2016,1900044935,585.56,SWALEC
TfGM,Transport,Utilities & Energy,15/01/2016,1900044938,"2,769.56",SWALEC
TfGM,Transport,Utilities & Energy,15/01/2016,1900044940,"1,003.77",SWALEC
TfGM,Transport,Utilities & Energy,15/01/2016,1900044941,585.56,SWALEC
TfGM,Transport,Utilities & Energy,15/01/2016,1900044942,"1,008.37",SWALEC
TfGM,Transport,Utilities & Energy,15/01/2016,1900044943,"1,551.49",SWALEC
TfGM,Transport,Utilities & Energy,15/01/2016,1900044944,922.23,SWALEC
TfGM,Transport,Utilities & Energy,15/01/2016,1900044946,"2,102.90",SWALEC
TfGM,Transport,Utilities & Energy,15/01/2016,1900044947,"1,106.65",SWALEC
TfGM,Transport,Utilities & Energy,15/01/2016,1900044948,448.08,SWALEC
TfGM,Transport,Utilities & Energy,15/01/2016,1900044949,"1,219.36",SWALEC
TfGM,Transport,Utilities & Energy,15/01/2016,1900044952,420.96,SWALEC
TfGM,Transport,Utilities & Energy,15/01/2016,1900044954,"1,992.78",SWALEC
TfGM,Transport,Utilities & Energy,15/01/2016,1900044958,538.18,SWALEC
TfGM,Transport,Traffic Signal Works,15/01/2016,5100089683,"38,912.00",TDC SYSTEMS LTD
TfGM,Transport,Supported Bus Services,15/01/2016,1900045005,"12,999.99",TELECARS
TfGM,Transport,Concessionary Reimbursement,15/01/2016,1900045037,"1,601.60",TELECARS
TfGM,Transport,Print & Media,15/01/2016,5100088987,484.00,THE IMAGE GROUP
TfGM,Transport,Cycle Training Scheme,15/01/2016,5100089608,870.00,THE URBAN CYCLE CENTRE CIC
TfGM,Transport,Concessionary Reimbursement,15/01/2016,1900045028,"8,750.00",TRANSPENNINE EXPRESS
TfGM,Transport,Concessionary Reimbursement,15/01/2016,1900045087,"1,464.00",TRAVEL ASSIST SERVICES LTD
TfGM,Transport,Cleaning,15/01/2016,5100089054,458.68,TUDOR CONTRACT CLEANERS LTD
TfGM,Transport,Cleaning,15/01/2016,5100089057,723.45,TUDOR CONTRACT CLEANERS LTD
TfGM,Transport,Cleaning,15/01/2016,5100089063,458.64,TUDOR CONTRACT CLEANERS LTD
TfGM,Transport,Cleaning,15/01/2016,5100089064,611.52,TUDOR CONTRACT CLEANERS LTD
TfGM,Transport,Cleaning,15/01/2016,5100089065,611.52,TUDOR CONTRACT CLEANERS LTD
TfGM,Transport,Capital Costs - Capital Project Main Contract Works,15/01/2016,5100089068,"1,400.00",TUDOR CONTRACT CLEANERS LTD
TfGM,Transport,Cleaning,15/01/2016,5100089480,432.00,TUDOR CONTRACT CLEANERS LTD
TfGM,Transport,Cleaning,15/01/2016,5100089482,550.33,TUDOR CONTRACT CLEANERS LTD
TfGM,Transport,Cleaning,15/01/2016,5100089484,"8,199.16",TUDOR CONTRACT CLEANERS LTD
TfGM,Transport,Cleaning,15/01/2016,5100089491,770.16,TUDOR CONTRACT CLEANERS LTD
TfGM,Transport,Cleaning,15/01/2016,5100089493,"7,751.50",TUDOR CONTRACT CLEANERS LTD
TfGM,Transport,Cleaning,15/01/2016,5100089495,513.00,TUDOR CONTRACT CLEANERS LTD
TfGM,Transport,Cleaning,15/01/2016,5100089501,725.17,TUDOR CONTRACT CLEANERS LTD
TfGM,Transport,Cleaning,15/01/2016,5100089504,685.20,TUDOR CONTRACT CLEANERS LTD
TfGM,Transport,Cleaning,15/01/2016,5100089505,440.00,TUDOR CONTRACT CLEANERS LTD
TfGM,Transport,Cleaning,15/01/2016,5100089510,"1,512.00",TUDOR CONTRACT CLEANERS LTD
TfGM,Transport,Cleaning,15/01/2016,5100089537,"1,111.90",TUDOR CONTRACT CLEANERS LTD
TfGM,Transport,Supported Bus Services,15/01/2016,1900044988,"13,152.81",UK COACHWAYS LTD
TfGM,Transport,Supported Bus Services,15/01/2016,1900044989,"3,926.67",UK COACHWAYS LTD
TfGM,Transport,Concessionary Reimbursement,15/01/2016,1900045088,"50,000.00",UK COACHWAYS LTD
TfGM,Transport,Capital Costs - QBC Support Services,15/01/2016,5100089647,825.00,URBAN VISION PARTNERSHIP LTD
TfGM,Transport,Concessionary Reimbursement,15/01/2016,1900045089,"4,000.00",VALE OF LLANGOLLEN TRAVEL LTD
TfGM,Transport,Supported Bus Services,15/01/2016,1900044994,"6,104.19",VIKING COACHES
TfGM,Transport,Print & Media,15/01/2016,5100089708,525.00,WALLACE PRINTERS LTD
TfGM,Transport,Concessionary Reimbursement,15/01/2016,1900045090,"6,000.00",WARRINGTON BOROUGH TRANSPORT LTD
TfGM,Transport,Supported Bus Services,15/01/2016,1900045017,"16,697.91",WIGAN BUSES LTD
TfGM,Transport,Supported Bus Services,15/01/2016,1900045018,882.33,WIGAN BUSES LTD
TfGM,Transport,Concessionary Reimbursement,15/01/2016,1900045091,"10,000.00",WIGAN BUSES LTD
TfGM,Transport,Supported Bus Services,15/01/2016,1900044960,"6,533.17",WIGAN COMMUNITY TRANSPORT
TfGM,Transport,Concessionary Reimbursement,15/01/2016,1900045038,800.50,WIGAN COMMUNITY TRANSPORT
TfGM,Transport,Training,15/01/2016,5100089593,695.00,WISE OWL BUSINESS SOLUTIONS LTD
TfGM,Transport,Capital Costs - Programme and Project Management Services,15/01/2016,5100089594,"5,320.00",WSP UK LTD
TfGM,Transport,Programme Management Services,18/01/2016,5100089803,"4,800.00",EDGERTON MANAGEMENT SERVICES LTD
TfGM,Transport,Paper and Printing Consumables,19/01/2016,5100088858,776.37,ANTALIS LTD
TfGM,Transport,IS Support Services,19/01/2016,5100089180,"205,770.64",APPLIED CARD TECHNOLOGIES
TfGM,Transport,IS Support & Maintenance,19/01/2016,5100089181,"82,625.00",APPLIED CARD TECHNOLOGIES
TfGM,Transport,Capital Costs - IS Software & Maintenance,19/01/2016,5100089337,"24,300.00",APPLIED CARD TECHNOLOGIES
TfGM,Transport,Smart Ticketing,19/01/2016,5100089850,"15,255.50",APT BUSINESS CONSULTANTS LTD
TfGM,Corporate Services,Architectural Services,19/01/2016,5100089815,"12,500.00",BENNETTS ASSOCIATES
TfGM,Corporate Services,Insurance,19/01/2016,5100089817,611.00,BERRYMANS LACE MAWER LLP
TfGM,Transport,Capital Costs - Capital Project Main Contract Works,19/01/2016,5100089901,"405,823.60",BETHELL CONSTRUCTION LIMITED
TfGM,Transport,Driver Intervention Course Delivery Costs,19/01/2016,5100089831,"2,851.20",BOLTON WHITES HOTEL LTD
TfGM,Transport,Capital Costs - Transport Planning & Monitoring Services,19/01/2016,5100089856,979.53,BREAKTHROUGH UK LTD
TfGM,Corporate Services,Corporate Support Services,19/01/2016,5100089900,"25,200.00",CEB GLOBAL LTD
TfGM,Transport,Print & Media,19/01/2016,5100089884,"3,280.00",CHAPEL PRESS LTD
TfGM,Transport,Heavy Rail Support Services,19/01/2016,5100089620,"3,250.00",CHESHIRE WEST & CHESTER COUNCIL
TfGM,Transport,Capital Costs - IS Software & Maintenance,19/01/2016,5100089852,"129,602.08",CORVIA LIMITED (T/AS TICKETER)
TfGM,Transport,Capital Costs - Computer and Communications Equipment,19/01/2016,5100089853,"58,760.00",CORVIA LIMITED (T/AS TICKETER)
TfGM,Transport,Capital Costs - Computer and Communications Equipment,19/01/2016,5100089854,"198,880.00",CORVIA LIMITED (T/AS TICKETER)
TfGM,Transport,Capital Costs - IS Support Services,19/01/2016,5100089645,"2,600.00",CRANAGE EMC TESTING LTD
TfGM,Transport,Traffic and Transportation Surveys,19/01/2016,5100089842,"6,545.00",CTS TRAFFIC & TRANSPORTATION
TfGM,Transport,Capital Costs - IS Software & Maintenance,19/01/2016,5100089753,"141,601.12",CUBIC TRANSPORTATION SYSTEMS (ITMS)
TfGM,Transport,Capital Costs - IS Software & Maintenance,19/01/2016,5100089754,"265,726.10",CUBIC TRANSPORTATION SYSTEMS (ITMS)
TfGM,Transport,Capital Costs - IS Software & Maintenance,19/01/2016,5100089755,"141,601.12",CUBIC TRANSPORTATION SYSTEMS (ITMS)
TfGM,Corporate Services,Cyclescheme,19/01/2016,5100089814,833.33,CYCLESCHEME LTD
TfGM,Corporate Services,Cyclescheme,19/01/2016,5100089816,833.33,CYCLESCHEME LTD
TfGM,Transport,CCTV Support Services,19/01/2016,5100089787,870.25,ELECTRICITY NW (CONSTRUCT & MAINT)
TfGM,Transport,CCTV Support Services,19/01/2016,5100089788,870.25,ELECTRICITY NW (CONSTRUCT & MAINT)
TfGM,Transport,CCTV Support Services,19/01/2016,5100089789,870.25,ELECTRICITY NW (CONSTRUCT & MAINT)
TfGM,Transport,CCTV Support Services,19/01/2016,5100089790,870.25,ELECTRICITY NW (CONSTRUCT & MAINT)
TfGM,Transport,CCTV Support Services,19/01/2016,5100089791,870.25,ELECTRICITY NW (CONSTRUCT & MAINT)
TfGM,Transport,CCTV Support Services,19/01/2016,5100089792,870.25,ELECTRICITY NW (CONSTRUCT & MAINT)
TfGM,Transport,CCTV Support Services,19/01/2016,5100089793,870.25,ELECTRICITY NW (CONSTRUCT & MAINT)
TfGM,Transport,CCTV Support Services,19/01/2016,5100089794,831.27,ELECTRICITY NW (CONSTRUCT & MAINT)
TfGM,Transport,CCTV Support Services,19/01/2016,5100089795,831.27,ELECTRICITY NW (CONSTRUCT & MAINT)
TfGM,Transport,CCTV Support Services,19/01/2016,5100089796,831.27,ELECTRICITY NW (CONSTRUCT & MAINT)
TfGM,Transport,CCTV Support Services,19/01/2016,5100089797,831.27,ELECTRICITY NW (CONSTRUCT & MAINT)
TfGM,Transport,CCTV Support Services,19/01/2016,5100089798,870.25,ELECTRICITY NW (CONSTRUCT & MAINT)
TfGM,Transport,CCTV Support Services,19/01/2016,5100089799,831.27,ELECTRICITY NW (CONSTRUCT & MAINT)
TfGM,Transport,Capital Costs - Programme and Project Management Services,19/01/2016,5100089631,"11,685.00",EXPERIS LTD
TfGM,Transport,Capital Costs - Programme and Project Management Services,19/01/2016,5100089830,"2,117.50",FIRCROFT ENGINEERING SERVICES LTD
TfGM,Transport,Vehicle Costs,19/01/2016,5100089892,450.00,GREEN TRIANGLE BUSES LTD
TfGM,Transport,Vehicle Costs,19/01/2016,5100089893,450.00,GREEN TRIANGLE BUSES LTD
TfGM,Transport,Temporary Vacancy Cover,19/01/2016,1900044877,"9,395.33",HAYS SPECIALIST RECRUITMENT LTD
TfGM,Corporate Services,IS Support Services,19/01/2016,5100088798,"(1,915.32)",KONICA MINOLTA (UK)
TfGM,Corporate Services,IS Support Services,19/01/2016,5100089660,"19,605.64",KONICA MINOLTA (UK)
TfGM,Transport,Smart Ticketing,19/01/2016,5100089306,"(5,400.00)",MORSON INTERNATIONAL
TfGM,Transport,Capital Costs - Programme and Project Management Services,19/01/2016,5100089397,"1,161.00",MORSON INTERNATIONAL
TfGM,Transport,Capital Costs - Project Management Services,19/01/2016,5100089398,"4,111.92",MORSON INTERNATIONAL
TfGM,Transport,Capital Costs - Programme and Project Management Services,19/01/2016,5100089400,665.60,MORSON INTERNATIONAL
TfGM,Transport,Capital Costs - Programme and Project Management Services,19/01/2016,5100089401,"6,127.50",MORSON INTERNATIONAL
TfGM,Corporate Services,IS Support Services,19/01/2016,5100089443,"1,827.52",MORSON INTERNATIONAL
TfGM,Transport,Capital Costs - Programme and Project Management Services,19/01/2016,5100089863,"1,935.00",MORSON INTERNATIONAL
TfGM,Transport,Capital Costs - Programme and Project Management Services,19/01/2016,5100089865,"1,988.75",MORSON INTERNATIONAL
TfGM,Transport,Capital Costs - Engineering Support Services,19/01/2016,5100089762,"7,092.00",NEIL CLARKE LTD
TfGM,Transport,Print & Media,19/01/2016,5100089719,"8,000.00",NORTHERN RAIL LIMITED
TfGM,Transport,Capital Costs - Legal Services,19/01/2016,5100089656,"26,710.50",PANNONE CORPORATE LLP (EMP)
TfGM,Transport,Legal Services,19/01/2016,5100089665,"7,380.00",PANNONE CORPORATE LLP (EMP)
TfGM,Transport,Capital Costs - Legal Services,19/01/2016,5100089674,"1,533.20",PANNONE CORPORATE LLP (EMP)
TfGM,Corporate Services,Legal Services,19/01/2016,5100089880,"2,194.50",PANNONE CORPORATE LLP (EMP)
TfGM,Corporate Services,Legal Services,19/01/2016,5100089881,"3,499.00",PANNONE CORPORATE LLP (EMP)
TfGM,Transport,Traffic and Transportation Surveys,19/01/2016,5100089641,"2,663.88",PLUSWORK LTD
TfGM,Transport,Traffic and Transportation Surveys,19/01/2016,5100089833,"1,252.80",PLUSWORK LTD
TfGM,Transport,Traffic and Transportation Surveys,19/01/2016,5100089836,"2,589.11",PLUSWORK LTD
TfGM,Transport,Traffic and Transportation Surveys,19/01/2016,5100089837,"2,080.73",PLUSWORK LTD
TfGM,Transport,Cycling Support Services,19/01/2016,5100089876,750.00,POSITIVE STEPS
TfGM,Transport,Heavy Rail Support Services,19/01/2016,5100089386,"5,565.00",PRACTICUS LIMITED
TfGM,Transport,Capital Costs - Programme and Project Management Services,19/01/2016,5100089485,"1,842.50",PRACTICUS LIMITED
TfGM,Transport,Financial and Commercial Support Services,19/01/2016,5100089827,"50,000.00",PRICEWATERHOUSECOOPERS
TfGM,Transport,Highway Support Services,19/01/2016,5100088546,"9,500.00",PROVING SERVICES LTD
TfGM,Transport,Capital Costs - Programme and Project Management Services,19/01/2016,5100089911,"1,400.00",PWS TECHNICAL SERVICES (UK) LIMITED
TfGM,Transport,Capital Costs - Print & Media,19/01/2016,5100089765,510.00,RCD
TfGM,Transport,Property & Equipment Maintenance,19/01/2016,5100089733,717.00,SPAANS BABCOCK LTD
TfGM,Transport,Traffic and Transportation Surveys,19/01/2016,5100089846,"2,560.00",TRACSIS TRAFFIC DATA LTD
TfGM,Transport,Cleaning,19/01/2016,5100089855,670.00,TUDOR CONTRACT CLEANERS LTD
TfGM,Transport,Capital Costs - Programme and Project Management Services,19/01/2016,5100089670,"3,148.80",TURNER & TOWNSEND PROJECT MANAGEMEN
TfGM,Transport,Project Management Services,19/01/2016,5100089756,"19,565.00",WSP UK LTD
TfGM,Corporate Services,Procurement Services,19/01/2016,5100089828,"4,269.03",WSP UK LTD
TfGM,Transport,Metrolink Operating Costs,21/01/2016,5100087565,"99,936.02",SCHEIDT & BACHMANN GMBH
TfGM,Transport,Capital Costs - Software Support Services,21/01/2016,5100089457,"158,605.00",SCHEIDT & BACHMANN GMBH
TfGM,Transport,Metrolink Operating Costs,21/01/2016,5100089663,"10,479.33",SCHEIDT & BACHMANN GMBH
TfGM,Transport,Capital Costs - Consultation Support,22/01/2016,5100090104,"1,075.00",ACS SURVEYORS
TfGM,Transport,Capital Costs - Architectural Services,22/01/2016,5100089614,"1,912.50",AHR ARCHITECTS LTD
TfGM,Corporate Services,IS Consumables,22/01/2016,5100090010,"3,000.00",ANS GROUP PLC
TfGM,Transport,Paper and Printing Consumables,22/01/2016,5100089712,"1,475.68",ANTALIS LTD
TfGM,Transport,Paper and Printing Consumables,22/01/2016,5100089714,"1,475.68",ANTALIS LTD
TfGM,Transport,Paper and Printing Consumables,22/01/2016,5100089716,"1,552.73",ANTALIS LTD
TfGM,Transport,Paper and Printing Consumables,22/01/2016,5100089958,"(2,329.10)",ANTALIS LTD
TfGM,Transport,Capital Costs - Signage Costs,22/01/2016,5100090041,782.00,ASTRA SIGNS
TfGM,Transport,Research Services,22/01/2016,5100089116,"13,000.00",ATKINS LTD
TfGM,Corporate Services,Insurance,22/01/2016,5100089961,793.00,BERRYMANS LACE MAWER LLP
TfGM,Corporate Services,Insurance,22/01/2016,5100090103,745.50,BERRYMANS LACE MAWER LLP
TfGM,Transport,Sustainable Transport Support Services,22/01/2016,5100089650,"5,000.00",BIG LIFE CENTRES
TfGM,Transport,Print & Media,22/01/2016,5100089391,"5,000.00",BJL GROUP LTD
TfGM,Transport,Print & Media,22/01/2016,5100089395,"8,260.00",BJL GROUP LTD
TfGM,Transport,Print & Media,22/01/2016,5100089399,"1,100.00",BJL GROUP LTD
TfGM,Transport,Print & Media,22/01/2016,5100089402,"1,835.00",BJL GROUP LTD
TfGM,Transport,Print & Media,22/01/2016,5100088478,444.00,BLUETREE DESIGN AND PRINT LTD
TfGM,Transport,Capital Costs - Project Support Services,22/01/2016,5100087094,"5,750.20",BOLTON METROPOLITAN BOROUGH COUNCIL
TfGM,Transport,Driver Intervention Course Delivery Costs,22/01/2016,5100089532,"5,280.00",BOLTON MIDDLEBROOK LEISURE TRUST
TfGM,Transport,Driver Intervention Course Delivery Costs,22/01/2016,5100089985,"2,504.00",BOLTON WHITES HOTEL LTD
TfGM,Corporate Services,Payroll Support Services,22/01/2016,5100089819,"4,473.40",CGI IT UK LTD
TfGM,Corporate Services,Payroll Support Services,22/01/2016,5100090034,"1,092.32",CGI IT UK LTD
TfGM,Transport,Concessionary Reimbursement,22/01/2016,1900045134,"1,270.00",COBRA (NW) LTD
TfGM,Transport,Print & Media,22/01/2016,5100088609,"1,750.00",COMMUNICORPUK
TfGM,Transport,Print & Media,22/01/2016,5100088610,769.98,COMMUNICORPUK
TfGM,Transport,Print & Media,22/01/2016,5100089966,"1,400.00",COMMUNICORPUK
TfGM,Transport,Print & Media,22/01/2016,5100090074,"3,264.00",COMMUNICORPUK
TfGM,Transport,Print & Media,22/01/2016,5100090105,"1,501.42",CTC
TfGM,Transport,Telecommunications,22/01/2016,5100089639,"6,671.09",DAISY COMMUNICATIONS
TfGM,Corporate Services,Telecommunications,22/01/2016,5100089653,"6,853.33",DAISY COMMUNICATIONS
TfGM,Transport,Driver Intervention Course Delivery Costs,22/01/2016,5100089267,"1,094.00",DTS LTD
TfGM,Transport,Utilities & Energy,22/01/2016,1900045096,542.26,EDF ENERGY
TfGM,Transport,Programme Management Services,22/01/2016,5100090007,"4,800.00",EDGERTON MANAGEMENT SERVICES LTD
TfGM,Transport,Capital Costs - IS Support Services,22/01/2016,5100089995,"8,999.97",EXPERIS LTD
TfGM,Transport,Capital Costs - IS Support Services,22/01/2016,5100089997,"11,117.61",EXPERIS LTD
TfGM,Transport,Driver Intervention Course Delivery Costs,22/01/2016,5100089232,"1,197.31",G CAMPBELL LTD
TfGM,Transport,Driver Intervention Course Delivery Costs,22/01/2016,5100089231,"1,750.40",G WEBSTER
TfGM,Transport,Driver Intervention Course Delivery Costs,22/01/2016,5100089236,656.40,G WHITWORTH
TfGM,Transport,Security Services,22/01/2016,5100089947,"1,709.95",G4S FINANCE SHARED SERVICE CENTRE
TfGM,Corporate Services,Temporary Vacancy Cover,22/01/2016,1900045140,"13,576.17",HAYS SPECIALIST RECRUITMENT LTD
TfGM,Corporate Services,Temporary Vacancy Cover,22/01/2016,1900045141,"10,697.51",HAYS SPECIALIST RECRUITMENT LTD
TfGM,Transport,Temporary Vacancy Cover,22/01/2016,1900045142,"13,959.65",HAYS SPECIALIST RECRUITMENT LTD
TfGM,Transport,Driver Intervention Course Delivery Costs,22/01/2016,5100090038,"2,916.67",HOLIDAY INN MANCHESTER EAST
TfGM,Transport,Print & Media,22/01/2016,5100088457,480.00,IGROUP LTD
TfGM,Corporate Services,Computer Support and Licences,22/01/2016,5100089423,"18,180.36",IGROUP LTD
TfGM,Transport,Driver Intervention Course Delivery Costs,22/01/2016,5100089221,"1,119.00",J AIREY
TfGM,Transport,Highway Support Services,22/01/2016,5100089524,"8,223.13",JACOBS UK LTD
TfGM,Transport,Property & Equipment Maintenance,22/01/2016,5100090042,"26,579.00",JC DECAUX UK LTD
TfGM,Transport,Property & Equipment Maintenance,22/01/2016,5100090089,"(26,579.00)",JC DECAUX UK LTD
TfGM,Transport,Capital Costs - Programme and Project Management Services,22/01/2016,5100089393,"6,894.00",JSLM PROGRAMME SERVICES LTD
TfGM,Transport,Print & Media,22/01/2016,5100090088,942.50,KIND CREATIVE LTD
TfGM,Transport,Capital Costs - Legal Services,22/01/2016,5100090005,500.00,KINGS CHAMBERS
TfGM,Transport,Capital Costs - Legal Services,22/01/2016,5100090006,500.00,KINGS CHAMBERS
TfGM,Transport,Driver Intervention Course Delivery Costs,22/01/2016,5100089233,"1,750.40",L ATKINSON DTS
TfGM,Transport,Capital Costs - Legal Services,22/01/2016,5100082993,500.00,LAMBERT SMITH HAMPTON
TfGM,Transport,Print & Media,22/01/2016,5100085366,"4,429.00",MANCHESTER CITY COUNCIL
TfGM,Transport,Capital Costs - Planning Support Services,22/01/2016,5100088593,"8,000.00",MANCHESTER CITY COUNCIL
TfGM,Transport,Driver Intervention Course Delivery Costs,22/01/2016,5100089618,"3,946.70",MANCHESTER CITY COUNCIL
TfGM,Transport,Driver Intervention Course Delivery Costs,22/01/2016,5100089619,"2,170.58",MANCHESTER CITY COUNCIL
TfGM,Transport,Security Services,22/01/2016,5100089871,957.38,MARPOL SECURITY LIMITED
TfGM,Transport,Capital Costs - Engineering Support Services,22/01/2016,5100089662,"6,800.00",MASON CONSULTANTS LTD
TfGM,Transport,Capital Costs - Programme and Project Management Services,22/01/2016,5100089388,"1,237.50",MATCHTECH GROUP PLC
TfGM,Transport,Metrolink Operating Costs,22/01/2016,5100087113,"4,120.00",METROLINK RATP DEV LTD
TfGM,Transport,Capital Costs - Project Support Services,22/01/2016,5100088497,"32,161.05",METROLINK RATP DEV LTD
TfGM,Corporate Services,Supported Bus Services,22/01/2016,5100088503,"1,750.00",METROLINK RATP DEV LTD
TfGM,Transport,Capital Costs - Project Support Services,22/01/2016,5100089279,"11,468.11",METROLINK RATP DEV LTD
TfGM,Transport,Capital Costs - Project Support Services,22/01/2016,5100089281,"36,719.20",METROLINK RATP DEV LTD
TfGM,Transport,Metrolink Operating Costs,22/01/2016,5100089870,"738,861.00",METROLINK RATP DEV LTD
TfGM,Transport,Metrolink Operating Costs,22/01/2016,5100089932,"112,517.55",METROLINK RATP DEV LTD
TfGM,Transport,Metrolink Operating Costs,22/01/2016,5100089934,"6,302.21",METROLINK RATP DEV LTD
TfGM,Transport,Metrolink Operating Costs,22/01/2016,5100089935,"3,150.49",METROLINK RATP DEV LTD
TfGM,Transport,Metrolink Operating Costs,22/01/2016,5100089936,"3,150.49",METROLINK RATP DEV LTD
TfGM,Transport,Metrolink Operating Costs,22/01/2016,5100089937,"3,150.49",METROLINK RATP DEV LTD
TfGM,Transport,Capital Costs - Project Support Services,22/01/2016,5100089940,"1,125.00",METROLINK RATP DEV LTD
TfGM,Transport,Capital Costs - Project Management Services,22/01/2016,5100089956,"4,568.80",MORSON INTERNATIONAL
TfGM,Transport,Capital Costs - Quantity Surveying Services,22/01/2016,5100089889,750.00,MOTT MACDONALD LTD
TfGM,Transport,Metrolink Operating Costs,22/01/2016,5100089820,"330,017.67",MPACT THALES
TfGM,Transport,Metrolink Operating Costs,22/01/2016,5100089823,"76,441.61",MPACT THALES
TfGM,Transport,Metrolink Operating Costs,22/01/2016,5100089825,"192,002.47",MPACT THALES
TfGM,Transport,Metrolink Operating Costs,22/01/2016,5100089991,"90,545.64",MPACT THALES
TfGM,Transport,Metrolink Operating Costs,22/01/2016,5100089992,"17,778.09",MPACT THALES
TfGM,Transport,Metrolink Operating Costs,22/01/2016,5100089993,"47,510.41",MPACT THALES
TfGM,Transport,Driver Intervention Course Delivery Costs,22/01/2016,5100090092,"256,820.00",NDORS LTD
TfGM,Transport,Staff Rail Passes,22/01/2016,5100089951,"2,323.90",NORTHERN RAIL LIMITED
TfGM,Transport,Print & Media,22/01/2016,5100089949,"7,108.50",OMEGA PRINT AND DESIGN LTD
TfGM,Corporate Services,Financial and Commercial Support Services,22/01/2016,5100089760,"13,732.75",PA CONSULTING SERVICES LIMITED
TfGM,Transport,Capital Costs - Legal Services,22/01/2016,5100090090,"2,452.50",PANNONE CORPORATE LLP (EMP)
TfGM,Corporate Services,IS Support Services,22/01/2016,5100089199,"3,000.00",PARAGON TELECOMS LTD
TfGM,Transport,"Rent, Rates & Service Charges",22/01/2016,1900045101,"4,275.00",PEEL SOUTH EAST LTD
TfGM,Transport,Driver Intervention Course Delivery Costs,22/01/2016,5100089751,"4,583.33",PROFESSIONAL DRIVER SERVICES LTD
TfGM,Transport,Driver Intervention Course Delivery Costs,22/01/2016,5100089752,600.00,PROFESSIONAL DRIVER SERVICES LTD
TfGM,Transport,Passenger Shelter Costs,22/01/2016,5100089567,717.50,QUEENSBURY SHELTERS LIMITED
TfGM,Transport,Passenger Shelter Costs,22/01/2016,5100090056,"2,870.00",QUEENSBURY SHELTERS LIMITED
TfGM,Transport,Driver Intervention Course Delivery Costs,22/01/2016,5100089230,"1,094.00",R LORD
TfGM,Transport,Driver Intervention Course Delivery Costs,22/01/2016,5100089385,984.60,R MOTT
TfGM,Transport,Temporary Vacancy Cover,22/01/2016,5100090068,"4,608.20",RACHEL J CONSULTANCY SERVICES LTD
TfGM,Transport,Concessionary Reimbursement,22/01/2016,1900045127,"1,000.00",RADIO CABS T/A ECO TRAVEL
TfGM,Transport,Capital Costs - Programme and Project Management Services,22/01/2016,5100089234,"1,386.45",Robert Walters Plc
TfGM,Transport,Capital Costs - Programme and Project Management Services,22/01/2016,5100089295,"2,772.90",Robert Walters Plc
TfGM,Transport,Capital Costs - Programme and Project Management Services,22/01/2016,5100089296,"2,310.75",Robert Walters Plc
TfGM,Transport,Capital Costs - Programme and Project Management Services,22/01/2016,5100089297,"2,772.90",Robert Walters Plc
TfGM,Transport,Capital Costs - Programme and Project Management Services,22/01/2016,5100089298,"2,772.90",Robert Walters Plc
TfGM,Corporate Services,Temporary Vacancy Cover,22/01/2016,5100089375,561.30,Robert Walters Plc
TfGM,Corporate Services,Temporary Vacancy Cover,22/01/2016,5100089411,"1,242.54",Robert Walters Plc
TfGM,Corporate Services,Temporary Vacancy Cover,22/01/2016,5100089413,"1,380.60",Robert Walters Plc
TfGM,Corporate Services,Temporary Vacancy Cover,22/01/2016,5100089415,"1,380.60",Robert Walters Plc
TfGM,Corporate Services,Temporary Vacancy Cover,22/01/2016,5100089417,"1,380.60",Robert Walters Plc
TfGM,Corporate Services,Temporary Vacancy Cover,22/01/2016,5100089419,"1,380.60",Robert Walters Plc
TfGM,Corporate Services,Temporary Vacancy Cover,22/01/2016,5100090027,"1,019.00",Robert Walters Plc
TfGM,Corporate Services,Temporary Vacancy Cover,22/01/2016,5100090029,"1,019.00",Robert Walters Plc
TfGM,Corporate Services,Temporary Vacancy Cover,22/01/2016,5100090031,"1,019.00",Robert Walters Plc
TfGM,Corporate Services,Temporary Vacancy Cover,22/01/2016,5100090033,"1,019.00",Robert Walters Plc
TfGM,Transport,CCTV Support Services,22/01/2016,5100090059,"18,915.90",ROSGAL LTD
TfGM,Corporate Services,Legal Services,22/01/2016,5100090069,"45,000.00",ROUTMORE T&C'S LTD
TfGM,Transport,Metrolink Operating Costs,22/01/2016,5100090018,"4,596.75",SCHEIDT & BACHMANN GMBH
TfGM,Transport,Metrolink Operating Costs,22/01/2016,5100090019,"6,810.00",SCHEIDT & BACHMANN GMBH
TfGM,Transport,Metrolink Operating Costs,22/01/2016,5100090020,"6,810.00",SCHEIDT & BACHMANN GMBH
TfGM,Transport,Metrolink Operating Costs,22/01/2016,5100090022,"40,204.01",SCHEIDT & BACHMANN GMBH
TfGM,Transport,Capital Costs - Print & Media,22/01/2016,5100089518,"1,122.34",SERVICEPOINT UK
TfGM,Transport,Traffic Signal Works,22/01/2016,5100089775,"53,923.05",SIEMENS PLC
TfGM,Transport,Traffic Signal Works,22/01/2016,5100089776,"16,333.58",SIEMENS PLC
TfGM,Transport,Sustainable Transport Promotion,22/01/2016,5100090106,"2,260.00",SPORT FOR LIFE
TfGM,Transport,Traffic Signal Works,22/01/2016,5100089978,"4,305.00",TDC SYSTEMS LTD
TfGM,Transport,Capital Costs - Programme and Project Management Services,22/01/2016,5100088160,"4,625.00",TURNER & TOWNSEND PROJECT MANAGEMEN
TfGM,Transport,Utilities & Energy,22/01/2016,1900045095,"1,062.20",UNITED UTILITIES WATER PLC
TfGM,Transport,Utilities & Energy,22/01/2016,1900045100,698.47,UNITED UTILITIES WATER PLC
TfGM,Transport,Capital Costs - Project Management Services,22/01/2016,5100089960,"25,512.98",URBAN VISION PARTNERSHIP LTD
TfGM,Transport,Telecommunications,22/01/2016,5100089655,"1,838.85",VODAFONE LTD
TfGM,Transport,"Rent, Rates & Service Charges",22/01/2016,1900045105,"3,011.52",WIGAN COUNCIL
TfGM,Transport,"Rent, Rates & Service Charges",22/01/2016,1900045106,625.00,WIGAN COUNCIL
TfGM,Transport,Capital Costs - Project Management Services,26/01/2016,5100089761,"10,800.00",AD2 LTD
TfGM,Transport,Capital Costs - Project Support Services,26/01/2016,5100087792,"1,600.00",AECOM LTD
TfGM,Corporate Services,IS Software & Maintenance,26/01/2016,5100089740,"19,500.00",APPLIED CARD TECHNOLOGIES
TfGM,Transport,Capital Costs - Project Support Services,26/01/2016,5100088301,672.00,ATKINS LTD
TfGM,Transport,Capital Costs - Engineering Support Services,26/01/2016,5100088305,"9,855.00",ATKINS LTD
TfGM,Transport,Capital Costs - Engineering Support Services,26/01/2016,5100089591,"14,505.00",ATKINS LTD
TfGM,Transport,Research Services,26/01/2016,5100089610,"2,995.00",ATKINS LTD
TfGM,Transport,Capital Costs - Programme and Project Management Services,26/01/2016,5100089953,"7,250.92",ATKINS LTD
TfGM,Transport,Property Support Services,26/01/2016,5100090064,"5,075.00",AXIS PROPERTY CONSULTANCY LLP
TfGM,Transport,Legal Services,26/01/2016,5100090208,"2,812.50",BIRCHAM DYSON BELL
TfGM,Transport,Other Operational Costs,26/01/2016,5100090174,"1,493.93",BRAKE BROS LTD
TfGM,Transport,Other Operational Costs,26/01/2016,5100090175,922.25,BRAKE BROS LTD
TfGM,Transport,Security Services,26/01/2016,5100090115,"2,019.51",CARLISLE SECURITY SERVICES LTD
TfGM,Transport,Capital Costs - Legal Services,26/01/2016,5100090205,"1,386.00",DLA PIPER UK LLP
TfGM,Transport,Capital Costs - Legal Services,26/01/2016,5100090206,678.50,DLA PIPER UK LLP
TfGM,Transport,Capital Costs - Legal Services,26/01/2016,5100090218,"1,439.50",DLA PIPER UK LLP
TfGM,Transport,Planning Support Services,26/01/2016,5100090140,"1,485.00",DURDAR CONSULTING LTD
TfGM,Transport,CCTV Support Services,26/01/2016,5100089786,870.25,ELECTRICITY NW (CONSTRUCT & MAINT)
TfGM,Transport,Property & Equipment Maintenance,26/01/2016,5100090225,"7,222.49",FES FM LTD
TfGM,Transport,Property & Equipment Maintenance,26/01/2016,5100090226,"3,541.19",FES FM LTD
TfGM,Transport,Property & Equipment Maintenance,26/01/2016,5100090227,"6,561.33",FES FM LTD
TfGM,Transport,Property & Equipment Maintenance,26/01/2016,5100090228,"5,297.26",FES FM LTD
TfGM,Transport,Property & Equipment Maintenance,26/01/2016,5100089268,425.00,FIELDWAY GROUP
TfGM,Transport,Property & Equipment Maintenance,26/01/2016,5100089269,"1,050.00",FIELDWAY GROUP
TfGM,Transport,Property & Equipment Maintenance,26/01/2016,5100089310,"2,186.07",FIELDWAY GROUP
TfGM,Transport,Property & Equipment Maintenance,26/01/2016,5100089312,"5,815.98",FIELDWAY GROUP
TfGM,Corporate Services,Property & Equipment Maintenance,26/01/2016,5100089851,"44,349.86",FIELDWAY GROUP
TfGM,Transport,Capital Costs - Programme and Project Management Services,26/01/2016,5100089687,"1,056.00",FIRCROFT ENGINEERING SERVICES LTD
TfGM,Transport,Driver Intervention Course Delivery Costs,26/01/2016,5100089229,"1,641.00",G VANN
TfGM,Transport,Capital Costs - Architectural Services,26/01/2016,5100088574,"1,007.79",GILLESPIES
TfGM,Corporate Services,Temporary Vacancy Cover,26/01/2016,1900044878,"9,291.71",HAYS SPECIALIST RECRUITMENT LTD
TfGM,Transport,Training,26/01/2016,5100089615,"1,485.00",JCT CONSULTANCY LTD
TfGM,Transport,Property Support Services,26/01/2016,5100090204,"103,992.42",JONES LANG LASALLE LTD
TfGM,Transport,Capital Costs - Property Support Services,26/01/2016,5100089847,"1,067.50",LESLIE ROBERTS AND CO LTD
TfGM,Transport,Security Services,26/01/2016,5100090003,"1,316.75",MARPOL SECURITY LIMITED
TfGM,Transport,Capital Costs - Programme and Project Management Services,26/01/2016,5100090130,"2,062.50",MATCHTECH GROUP PLC
TfGM,Transport,Street Furniture Equipment,26/01/2016,5100089224,"3,050.00",METFAST LTD
TfGM,Transport,Metrolink Operating Costs,26/01/2016,5100089926,"1,255,411.80",METROLINK RATP DEV LTD
TfGM,Transport,Metrolink Operating Costs,26/01/2016,5100089927,"85,052.20",METROLINK RATP DEV LTD
TfGM,Transport,Metrolink Operating Costs,26/01/2016,5100089928,"17,475.27",METROLINK RATP DEV LTD
TfGM,Transport,Metrolink Operating Costs,26/01/2016,5100089930,"13,243.87",METROLINK RATP DEV LTD
TfGM,Transport,Metrolink Operating Costs,26/01/2016,5100089931,"13,835.35",METROLINK RATP DEV LTD
TfGM,Transport,Metrolink Operating Costs,26/01/2016,5100089933,"293,445.77",METROLINK RATP DEV LTD
TfGM,Transport,Metrolink Operating Costs,26/01/2016,5100089938,"31,508.60",METROLINK RATP DEV LTD
TfGM,Transport,Metrolink Operating Costs,26/01/2016,5100089939,"339,916.13",METROLINK RATP DEV LTD
TfGM,Transport,Capital Costs - Project Support Services,26/01/2016,5100090183,"2,286.30",METROLINK RATP DEV LTD
TfGM,Transport,Smart Ticketing,26/01/2016,5100089959,"3,187.50",MG & FAMILY LTD T/A INNOVATIOUS
TfGM,Transport,Capital Costs - Programme and Project Management Services,26/01/2016,5100090141,"2,000.00",MORSON INTERNATIONAL
TfGM,Transport,Capital Costs - Programme and Project Management Services,26/01/2016,5100090142,"1,664.00",MORSON INTERNATIONAL
TfGM,Corporate Services,IS Support Services,26/01/2016,5100090147,"2,284.40",MORSON INTERNATIONAL
TfGM,Transport,Capital Costs - Project Management Services,26/01/2016,5100090155,"6,853.20",MORSON INTERNATIONAL
TfGM,Transport,Engineering Support Services,26/01/2016,5100090165,"3,439.00",MOTT MACDONALD LTD
TfGM,Transport,Programme and Project Management Services,26/01/2016,5100090133,"13,125.00",NJJ TECHNICAL SERVICES LTD
TfGM,Transport,Training,26/01/2016,5100090203,900.00,NORTH WEST EMPLOYERS
TfGM,Transport,Staff Rail Passes,26/01/2016,5100090117,"14,575.60",NORTHERN RAIL LIMITED
TfGM,Transport,Driver Intervention Course Delivery Costs,26/01/2016,5100089488,547.00,P MARTIN
TfGM,Transport,Capital Costs - Legal Services,26/01/2016,5100086182,"4,702.50",PANNONE CORPORATE LLP (EMP)
TfGM,Transport,Capital Costs - Legal Services,26/01/2016,5100090247,"(3,921.40)",PANNONE CORPORATE LLP (EMP)
TfGM,Transport,Heavy Rail Support Services,26/01/2016,5100090135,"3,850.00",PARITY PROFESSIONALS LTD
TfGM,Transport,Traffic and Transportation Surveys,26/01/2016,5100090238,470.95,PLUSWORK LTD
TfGM,Transport,Traffic and Transportation Surveys,26/01/2016,5100090239,590.25,PLUSWORK LTD
TfGM,Transport,Print & Media,26/01/2016,5100089218,"4,750.00",REPUTATION NORTH LTD
TfGM,Corporate Services,Temporary Vacancy Cover,26/01/2016,5100090078,815.20,Robert Walters Plc
TfGM,Corporate Services,Temporary Vacancy Cover,26/01/2016,5100090082,815.20,Robert Walters Plc
TfGM,Corporate Services,Temporary Vacancy Cover,26/01/2016,5100090084,"1,019.00",Robert Walters Plc
TfGM,Corporate Services,Temporary Vacancy Cover,26/01/2016,5100090086,815.20,Robert Walters Plc
TfGM,Transport,CCTV Support Services,26/01/2016,5100089321,"1,283.68",ROSGAL LTD
TfGM,Transport,CCTV Support Services,26/01/2016,5100089327,"3,817.65",ROSGAL LTD
TfGM,Transport,CCTV Support Services,26/01/2016,5100089329,"4,385.09",ROSGAL LTD
TfGM,Transport,CCTV Support Services,26/01/2016,5100089330,946.04,ROSGAL LTD
TfGM,Transport,CCTV Support Services,26/01/2016,5100089333,"6,673.92",ROSGAL LTD
TfGM,Transport,CCTV Support Services,26/01/2016,5100089335,"4,910.82",ROSGAL LTD
TfGM,Transport,CCTV Support Services,26/01/2016,5100089336,"2,412.78",ROSGAL LTD
TfGM,Transport,CCTV Support Services,26/01/2016,5100089345,"4,087.79",ROSGAL LTD
TfGM,Transport,CCTV Support Services,26/01/2016,5100089346,"3,730.52",ROSGAL LTD
TfGM,Transport,CCTV Support Services,26/01/2016,5100089347,"3,657.79",ROSGAL LTD
TfGM,Transport,CCTV Support Services,26/01/2016,5100089350,488.44,ROSGAL LTD
TfGM,Transport,CCTV Support Services,26/01/2016,5100089351,"4,214.06",ROSGAL LTD
TfGM,Transport,CCTV Support Services,26/01/2016,5100089352,"7,500.00",ROSGAL LTD
TfGM,Transport,CCTV Support Services,26/01/2016,5100089354,840.84,ROSGAL LTD
TfGM,Transport,CCTV Support Services,26/01/2016,5100089355,"4,732.12",ROSGAL LTD
TfGM,Transport,CCTV Support Services,26/01/2016,5100089357,"6,583.43",ROSGAL LTD
TfGM,Transport,Capital Costs - Project Management Services,26/01/2016,5100089225,"10,051.00",SB PROJECT MANAGEMENT LTD
TfGM,Transport,Security Services,26/01/2016,5100090248,"2,129.48",STAGECOACH SERVICES LTD
TfGM,Transport,Transport Planning & Monitoring Services,26/01/2016,5100089248,"5,940.72",SYSTRA LTD
TfGM,Transport,Print & Media,26/01/2016,5100089858,440.00,THE IMAGE GROUP
TfGM,Transport,Print & Media,26/01/2016,5100090143,"3,000.00",THE IMAGE GROUP
TfGM,Transport,Cleaning,26/01/2016,5100090254,611.52,TUDOR CONTRACT CLEANERS LTD
TfGM,Transport,Cleaning,26/01/2016,5100090264,550.33,TUDOR CONTRACT CLEANERS LTD
TfGM,Transport,Cleaning,26/01/2016,5100090265,"8,199.16",TUDOR CONTRACT CLEANERS LTD
TfGM,Transport,Capital Costs - Programme and Project Management Services,26/01/2016,5100088467,"2,746.25",TXM RECRUIT LIMITED
TfGM,Transport,Capital Costs - Programme and Project Management Services,26/01/2016,5100088650,"2,746.25",TXM RECRUIT LIMITED
TfGM,Transport,Capital Costs - Programme and Project Management Services,26/01/2016,5100088796,"2,746.25",TXM RECRUIT LIMITED
TfGM,Transport,Capital Costs - Programme and Project Management Services,26/01/2016,5100088972,"2,746.25",TXM RECRUIT LIMITED
TfGM,Transport,Capital Costs - Programme and Project Management Services,26/01/2016,5100089291,"(3,683.63)",TXM RECRUIT LIMITED
TfGM,Transport,Capital Costs - Programme and Project Management Services,26/01/2016,5100089392,"2,675.00",TXM RECRUIT LIMITED
TfGM,Transport,Capital Costs - Programme and Project Management Services,26/01/2016,5100089603,"2,746.25",TXM RECRUIT LIMITED
TfGM,Transport,Print & Media,26/01/2016,5100089883,"2,800.00",UNIQUE CREATIVE COMMUNICATIONS
TfGM,Transport,Capital Costs Project Support Services,26/01/2016,5100090179,"2,980.00",URBAN VISION PARTNERSHIP LTD
TfGM,Transport,Environmental & Ecological Support Services,26/01/2016,5100089494,"5,830.00",WYG ENV PLANNING TRANSPORT LTD
TfGM,Transport,Vehicle Costs,27/01/2016,1200037178,576.29,ALLSTAR
TfGM,Transport,Capital Costs - Utility & Service Diversion Costs,27/01/2016,5100090288,"(86,125.79)",BT OPENREACH (SALFORD)
TfGM,Transport,CCTV Support Services,29/01/2016,5100089564,560.00,ALTRON COMMUNICATIONS EQUIPMENT LTD
TfGM,Transport,Paper and Printing Consumables,29/01/2016,5100089473,776.37,ANTALIS LTD
TfGM,Transport,Paper and Printing Consumables,29/01/2016,5100089474,"1,552.73",ANTALIS LTD
TfGM,Transport,Paper and Printing Consumables,29/01/2016,5100089522,737.84,ANTALIS LTD
TfGM,Transport,Paper and Printing Consumables,29/01/2016,5100089523,776.37,ANTALIS LTD
TfGM,Transport,Paper and Printing Consumables,29/01/2016,5100089990,"1,475.68",ANTALIS LTD
TfGM,Transport,Capital Costs - Signage Costs,29/01/2016,5100089917,"1,405.00",ASTRA SIGNS
TfGM,Corporate Services,Procurement Services,29/01/2016,5100089957,"9,900.00",ATKINS LTD
TfGM,Transport,Capital Costs - LRT Vehicles,29/01/2016,5100090353,"2,460.00",AURA GRAPHICS LIMITED
TfGM,Transport,Cycle Training Scheme,29/01/2016,5100089857,"1,200.00",BIKE RIGHT!
TfGM,Transport,Cycle Training Scheme,29/01/2016,5100090405,"5,400.00",BIKE RIGHT!
TfGM,Transport,Capital Costs - Legal Services,29/01/2016,5100085845,"22,082.49",BLAKE NEWPORT ASSOCIATES LTD
TfGM,Transport,Capital Costs - Legal Services,29/01/2016,5100085846,"29,260.15",BLAKE NEWPORT ASSOCIATES LTD
TfGM,Transport,Capital Costs - Legal Services,29/01/2016,5100086510,"15,330.40",BLAKE NEWPORT ASSOCIATES LTD
TfGM,Transport,Capital Costs - Legal Services,29/01/2016,5100090298,787.50,BLAKE NEWPORT ASSOCIATES LTD
TfGM,Transport,Capital Costs - Legal Services,29/01/2016,5100090299,"4,815.00",BLAKE NEWPORT ASSOCIATES LTD
TfGM,Transport,Capital Costs - Legal Services,29/01/2016,5100090301,"21,440.47",BLAKE NEWPORT ASSOCIATES LTD
TfGM,Transport,Print & Media,29/01/2016,5100089887,750.00,BLUETREE DESIGN AND PRINT LTD
TfGM,Transport,IS Support Services,29/01/2016,5100089472,"1,100.00",BMT HI-Q SIGMA LTD
TfGM,Transport,Capital Costs - Capital Project Main Contract Works,29/01/2016,5100089177,973.25,BROXAP LTD
TfGM,Transport,Capital Costs - Capital Project Main Contract Works,29/01/2016,5100089367,"1,275.00",BROXAP LTD
TfGM,Transport,"Rent, Rates & Service Charges",29/01/2016,1900045188,"4,693.47",BRUNTWOOD 2000 ALPHA PORTFOLIO
TfGM,Transport,IS Software & Maintenance,29/01/2016,5100088382,"22,846.92",BT ENGAGE IT
TfGM,Corporate Services,CCTV Support Services,29/01/2016,5100089975,"6,306.20",BT ENGAGE IT
TfGM,Transport,Telecommunications,29/01/2016,5100090309,"5,080.50",BT GLOBAL SERVICES
TfGM,Transport,Driver Intervention Course Delivery Costs,29/01/2016,5100089780,"6,200.00",BURY MBC
TfGM,Transport,Sustainable Transport Support Services,29/01/2016,5100090102,"12,000.00",BURY MBC
TfGM,Transport,Sustainable Transport Support Services,29/01/2016,1900045187,"79,490.78",CANALS AND RIVERS TRUST
TfGM,Transport,Driver Intervention Course Delivery Costs,29/01/2016,5100090404,"9,360.00",CARRINGTON BUSINESS PARK (CBPK)
TfGM,Transport,Print & Media,29/01/2016,5100089251,"1,345.00",CHAPEL PRESS LTD
TfGM,Transport,Professional Services,29/01/2016,5100090325,"6,497.75",CHARLES W. MONHEIM
TfGM,Transport,Print & Media,29/01/2016,5100088632,"1,850.00",COMMUNICORPUK
TfGM,Transport,Print & Media,29/01/2016,5100088633,"1,680.00",COMMUNICORPUK
TfGM,Transport,Print & Media,29/01/2016,5100088634,"1,016.00",COMMUNICORPUK
TfGM,Transport,Print & Media,29/01/2016,5100090276,"2,500.00",COMMUNICORPUK
TfGM,Transport,Print & Media,29/01/2016,5100090277,"7,050.83",COMMUNICORPUK
TfGM,Transport,Print & Media,29/01/2016,5100090278,"2,500.00",COMMUNICORPUK
TfGM,Transport,Print & Media,29/01/2016,5100090279,"6,066.00",COMMUNICORPUK
TfGM,Transport,Print & Media,29/01/2016,5100090280,"9,798.17",COMMUNICORPUK
TfGM,Corporate Services,Telecommunications,29/01/2016,5100087594,"6,708.29",DAISY COMMUNICATIONS
TfGM,Transport,Vehicle Costs,29/01/2016,5100090305,699.60,ENTERPRISE RENT A CAR UK LTD
TfGM,Transport,Vehicle Costs,29/01/2016,5100090306,667.80,ENTERPRISE RENT A CAR UK LTD
TfGM,Transport,Financial and Commercial Support Services,29/01/2016,5100090394,"40,072.00",ERNST & YOUNG
TfGM,Transport,Card Management Services,29/01/2016,5100088711,"10,154.60",ESP SYSTEX LTD
TfGM,Transport,Card Management Services,29/01/2016,5100090367,"5,739.75",ESP SYSTEX LTD
TfGM,Transport,Capital Costs - Card Management Services,29/01/2016,5100090379,"2,085.00",ESP SYSTEX LTD
TfGM,Transport,Card Management Services,29/01/2016,5100090387,485.00,ESP SYSTEX LTD
TfGM,Transport,Card Management Services,29/01/2016,5100090391,"8,482.64",ESP SYSTEX LTD
TfGM,Transport,Capital Costs - Legal Services,29/01/2016,5100090302,"32,002.55",EVERSHEDS LLP
TfGM,Transport,Capital Costs - IS Support Services,29/01/2016,5100090095,"7,941.15",EXPERIS LTD
TfGM,Transport,Capital Costs - Programme and Project Management Services,29/01/2016,5100090096,"1,845.00",EXPERIS LTD
TfGM,Transport,IS Support Services,29/01/2016,5100089331,"8,866.57",FIRCROFT ENGINEERING SERVICES LTD
TfGM,Transport,IS Support Services,29/01/2016,5100089659,"6,662.40",FIRCROFT ENGINEERING SERVICES LTD
TfGM,Transport,Capital Costs - Programme and Project Management Services,29/01/2016,5100089664,"3,960.00",FIRCROFT ENGINEERING SERVICES LTD
TfGM,Transport,Postage Costs,29/01/2016,1900045200,"2,000.00",FRAMA UK LIMITED
TfGM,Transport,Cycling Support Services,29/01/2016,5100089835,555.00,GET ON C.I.C
TfGM,Transport,Capital Costs - Engineering Support Services,29/01/2016,5100088314,720.00,GO TRAFFIC MANAGEMENT LTD
TfGM,Transport,Capital Costs - Engineering Support Services,29/01/2016,5100088499,720.00,GO TRAFFIC MANAGEMENT LTD
TfGM,Transport,Capital Costs - Engineering Support Services,29/01/2016,5100088880,720.00,GO TRAFFIC MANAGEMENT LTD
TfGM,Transport,Capital Costs - Engineering Support Services,29/01/2016,5100088962,720.00,GO TRAFFIC MANAGEMENT LTD
TfGM,Transport,Capital Costs - Engineering Support Services,29/01/2016,5100089468,720.00,GO TRAFFIC MANAGEMENT LTD
TfGM,Transport,Capital Costs - Engineering Support Services,29/01/2016,5100089570,720.00,GO TRAFFIC MANAGEMENT LTD
TfGM,Transport,Capital Costs - Engineering Support Services,29/01/2016,5100089571,720.00,GO TRAFFIC MANAGEMENT LTD
TfGM,Transport,Capital Costs - Engineering Support Services,29/01/2016,5100090121,720.00,GO TRAFFIC MANAGEMENT LTD
TfGM,Corporate Services,Professional Services,29/01/2016,5100089490,"18,677.00",HALCROW GROUP LTD
TfGM,Transport,Research Services,29/01/2016,5100089705,"6,863.89",HALCROW GROUP LTD
TfGM,Transport,Research Services,29/01/2016,5100090097,"4,645.68",HALCROW GROUP LTD
TfGM,Transport,Concessionary Reimbursement,29/01/2016,1900045193,805.00,HARVEYS BURY CARS HARVEYS TRANSPORT
TfGM,Corporate Services,Temporary Vacancy Cover,29/01/2016,1900045113,"16,343.26",HAYS SPECIALIST RECRUITMENT LTD
TfGM,Transport,Print & Media,29/01/2016,5100089436,558.00,INTREPIDFISH  LIMITED
TfGM,Transport,Training,29/01/2016,5100090098,525.00,JCT CONSULTANCY LTD
TfGM,Transport,Concessionary Reimbursement,29/01/2016,1900045195,"1,219.00",JR'S PRIVATE HIRE
TfGM,Transport,Procurement Services,29/01/2016,5100090369,"8,925.00",JULIAN BENSON ASSOCIATES LTD
TfGM,Transport,Capital Costs - IS Software & Maintenance,29/01/2016,5100089779,"7,830.00",KEYSOFT SOLUTIONS
TfGM,Transport,Print & Media,29/01/2016,5100089915,"1,020.50",KIND CREATIVE LTD
TfGM,Transport,Property Support Services,29/01/2016,5100089849,"2,500.00",LESLIE ROBERTS AND CO LTD
TfGM,Transport,"Rent, Rates & Service Charges",29/01/2016,5100089874,"13,321.50",MANCHESTER AIRPORT PLC
TfGM,Transport,Sustainable Transport Support Services,29/01/2016,5100089427,"6,510.00",MANCHESTER COMMUNITY GIANTS
TfGM,Transport,Security Services,29/01/2016,5100090001,957.38,MARPOL SECURITY LIMITED
TfGM,Transport,Capital Costs - Programme and Project Management Services,29/01/2016,5100090372,825.00,MATCHTECH GROUP PLC
TfGM,Transport,Street Furniture Equipment,29/01/2016,5100090368,"3,500.00",METFAST LTD
TfGM,Transport,Concessionary Reimbursement,29/01/2016,1900045191,"2,602.00",METRO TAXIS LTD
TfGM,Transport,Capital Costs - Property & Equipment Maintenance,29/01/2016,5100090385,611.80,METROLINK RATP DEV LTD
TfGM,Transport,Metrolink Maintenance & Improvements,29/01/2016,5100090386,708.13,METROLINK RATP DEV LTD
TfGM,Transport,Capital Costs - Programme and Project Management Services,29/01/2016,5100090296,"4,992.00",MORSON INTERNATIONAL
TfGM,Transport,Capital Costs - Programme and Project Management Services,29/01/2016,5100090382,"2,800.00",MORSON INTERNATIONAL
TfGM,Corporate Services,IS Support Services,29/01/2016,5100090383,"1,370.64",MORSON INTERNATIONAL
TfGM,Transport,Capital Costs - Engineering Support Services,29/01/2016,5100088273,636.00,MOTT MACDONALD LTD
TfGM,Transport,Capital Costs - Project Support Services,29/01/2016,5100088461,"4,880.00",MOTT MACDONALD LTD
TfGM,Transport,Metrolink Operating Costs,29/01/2016,5100090324,"76,441.61",MPACT THALES
TfGM,Transport,Metrolink Operating Costs,29/01/2016,5100090343,"320,636.28",MPACT THALES
TfGM,Transport,Driver Intervention Course Delivery Costs,29/01/2016,5100090091,"285,360.00",NDORS LTD
TfGM,Transport,Capital Costs - Project Support Services,29/01/2016,5100088611,"15,250.00",OVE ARUP & PARTNERS INTERNATIONAL L
TfGM,Transport,Heavy Rail Support Services,29/01/2016,5100090137,"13,090.00",PARITY PROFESSIONALS LTD
TfGM,Transport,Heavy Rail Support Services,29/01/2016,5100090392,"6,930.00",PARITY PROFESSIONALS LTD
TfGM,Transport,Project Support Services,29/01/2016,5100090393,"7,920.00",PARITY PROFESSIONALS LTD
TfGM,Transport,Capital Costs - Programme and Project Management Services,29/01/2016,5100089885,"1,646.84",PERTEMPS PROFESSIONAL STAFFING LTD
TfGM,Transport,Traffic and Transportation Surveys,29/01/2016,5100089682,"1,719.06",PLUSWORK LTD
TfGM,Transport,Concessionary Reimbursement,29/01/2016,1900045189,"1,100.00",RADIO CABS T/A ECO TRAVEL
TfGM,Transport,Vehicle Repairs & Maintenance,29/01/2016,5100090229,"18,142.50",RIVERSIDE TRUCK RENTAL
TfGM,Transport,Vehicle Repairs & Maintenance,29/01/2016,5100090230,464.00,RIVERSIDE TRUCK RENTAL
TfGM,Transport,Smart Ticketing,29/01/2016,5100089446,"2,091.05",Robert Walters Plc
TfGM,Transport,Smart Ticketing,29/01/2016,5100089447,"2,201.10",Robert Walters Plc
TfGM,Corporate Services,Temporary Vacancy Cover,29/01/2016,5100090036,552.24,Robert Walters Plc
TfGM,Corporate Services,Temporary Vacancy Cover,29/01/2016,5100090186,420.98,Robert Walters Plc
TfGM,Transport,Temporary Vacancy Cover,29/01/2016,5100090191,670.54,Robert Walters Plc
TfGM,Transport,Temporary Vacancy Cover,29/01/2016,5100090192,500.06,Robert Walters Plc
TfGM,Corporate Services,Computer Support and Licences,29/01/2016,5100089840,"3,715.00",SATISNET LIMITED
TfGM,Transport,Traffic Signal Works,29/01/2016,5100089767,"87,638.17",SIEMENS PLC
TfGM,Transport,Traffic Signal Works,29/01/2016,5100089768,"8,016.47",SIEMENS PLC
TfGM,Transport,Traffic Signal Works,29/01/2016,5100089769,"9,652.44",SIEMENS PLC
TfGM,Transport,Traffic Signal Works,29/01/2016,5100089770,"18,633.38",SIEMENS PLC
TfGM,Transport,Traffic Signal Works,29/01/2016,5100089771,"7,737.87",SIEMENS PLC
TfGM,Transport,Traffic Signal Works,29/01/2016,5100089772,"7,987.53",SIEMENS PLC
TfGM,Transport,Traffic Signal Works,29/01/2016,5100089773,"7,981.20",SIEMENS PLC
TfGM,Transport,Traffic Signal Works,29/01/2016,5100089774,"29,625.09",SIEMENS PLC
TfGM,Transport,Utilities & Energy,29/01/2016,1900045207,"13,160.16",SMARTEST ENERGY
TfGM,Transport,Utilities & Energy,29/01/2016,1900045208,"2,832.92",SMARTEST ENERGY
TfGM,Transport,Utilities & Energy,29/01/2016,1900045209,"3,070.37",SMARTEST ENERGY
TfGM,Transport,Planning Support Services,29/01/2016,5100090380,"1,750.00",STRATAGEEB LIMITED
TfGM,Transport,Capital Costs - Sustainable Transport Support Services,29/01/2016,5100090395,"9,215.00",SUSTRANS LTD
TfGM,Transport,Utilities & Energy,29/01/2016,1900045198,"2,751.82",SWALEC
TfGM,Transport,Utilities & Energy,29/01/2016,1900045201,586.33,SWALEC
TfGM,Transport,Print & Media,29/01/2016,5100090374,567.21,TANGIBLE BENEFIT LTD
TfGM,Transport,Computer and Printing Hardware,29/01/2016,5100090375,681.22,TANGIBLE BENEFIT LTD
TfGM,Transport,Capital Costs - Computer and Communications Equipment,29/01/2016,5100090376,681.22,TANGIBLE BENEFIT LTD
TfGM,Transport,Capital Costs - Capital Project Main Contract Works,29/01/2016,5100090344,"203,392.00",THALES TRANSPORT & SECURITY LTD
TfGM,Transport,Capital Costs - Capital Project Main Contract Works,29/01/2016,5100090345,"91,608.00",THALES TRANSPORT & SECURITY LTD
TfGM,Corporate Services,Printer Consumables,29/01/2016,5100090378,"4,360.00",TOTAL COMPUTERS LTD
TfGM,Corporate Services,IS Consumables,29/01/2016,5100090400,"2,900.00",TOTAL COMPUTERS LTD
TfGM,Transport,Cleaning,29/01/2016,5100089069,458.64,TUDOR CONTRACT CLEANERS LTD
TfGM,Transport,Capital Costs - Quantity Surveying Services,29/01/2016,5100089809,"1,191.00",TURNER & TOWNSEND PROJECT MANAGEMEN
TfGM,Transport,Capital Costs - Quantity Surveying Services,29/01/2016,5100089811,"1,661.00",TURNER & TOWNSEND PROJECT MANAGEMEN
TfGM,Transport,Capital Costs - Quantity Surveying Services,29/01/2016,5100089812,517.00,TURNER & TOWNSEND PROJECT MANAGEMEN
TfGM,Transport,Capital Costs - Programme and Project Management Services,29/01/2016,5100089839,"2,700.00",TURNER & TOWNSEND PROJECT MANAGEMEN
TfGM,Transport,Capital Costs - Programme and Project Management Services,29/01/2016,5100089898,"3,250.00",TURNER & TOWNSEND PROJECT MANAGEMEN
TfGM,Transport,Capital Costs - Programme and Project Management Services,29/01/2016,5100089630,"2,675.00",TXM RECRUIT LIMITED
TfGM,Transport,Property & Equipment Maintenance,29/01/2016,5100089723,"46,795.60",VIX TECHNOLOGY LTD
TfGM,Transport,Vehicle Costs,29/01/2016,5100090231,"2,756.29",WEST WAY MANCHESTER
TfGM,Transport,Project Support Services,29/01/2016,5100089894,"3,124.00",WSP UK LTD
TfGM,Transport,Metrolink Operating Costs,31/01/2016,5100089986,"10,895.47",SCHEIDT & BACHMANN GMBH
TfGM,Transport,Metrolink Operating Costs,31/01/2016,5100090021,"100,275.88",SCHEIDT & BACHMANN GMBH
TfGM,Transport,Metrolink Operating Costs,31/01/2016,5100090108,"3,972.50",SCHEIDT & BACHMANN GMBH
TfGM,Transport,Metrolink Operating Costs,31/01/2016,5100090110,"2,213.25",SCHEIDT & BACHMANN GMBH
TfGM,Transport,Metrolink Operating Costs,31/01/2016,5100090111,"2,383.50",SCHEIDT & BACHMANN GMBH
TfGM,Transport,Utilities & Energy,31/01/2016,1900045276,"45,947.22",SWALEC
TfGM,Transport,Capital Costs - Programme and Project Management Services,02/02/2016,5100090455,"8,415.00",ACUITY PROGRAMME MANAGEMENT LTD
TfGM,Transport,Capital Costs - Programme and Project Management Services,02/02/2016,5100089292,"13,775.00",AECOM LTD
TfGM,Transport,Capital Costs - Engineering Support Services,02/02/2016,5100089328,"2,489.40",ATKINS LTD
TfGM,Transport,Capital Costs - LRT Vehicles,02/02/2016,5100090433,"523,750.00",BOMBARDIER TRANSPORTATION UK LTD
TfGM,Transport,Capital Costs - Architectural Services,02/02/2016,5100088635,"2,928.99",BOWKER SADLER PARTNERSHIP LIMITED
TfGM,Corporate Services,Procurement Services,02/02/2016,5100090488,"14,400.00",CNC PERFORMANCE CONSULTANTS LTD
TfGM,Transport,Subscriptions,02/02/2016,5100090463,602.00,EAST RIDING COUNCIL
TfGM,Transport,Programme Assurance Services,02/02/2016,5100086959,"69,835.38",ERNST & YOUNG
TfGM,Transport,Print & Media,02/02/2016,5100090417,"7,345.00",HEMISPHERE DESIGN & MRKTNG CONSULT
TfGM,Corporate Services,Procurement Services,02/02/2016,5100090493,"10,450.00",JON MAYOR CONSULTING LTD
TfGM,Transport,Training,02/02/2016,5100090460,600.00,MAKINSON PROGRESS LIMITED
TfGM,Transport,Subscriptions,02/02/2016,5100089455,"40,000.00",MARKETING MANCHESTER
TfGM,Transport,Security Services,02/02/2016,5100090013,"1,106.88",MARPOL SECURITY LIMITED
TfGM,Transport,Smart Ticketing,02/02/2016,5100089859,"6,600.00",MORSON INTERNATIONAL
TfGM,Transport,Capital Costs - Capital Project Main Contract Works,02/02/2016,5100080367,"19,274.45",MPACT THALES
TfGM,Corporate Services,Procurement Services,02/02/2016,5100090474,"10,237.50",OPUS BESTPAY LTD
TfGM,Transport,Capital Costs - Legal Services,02/02/2016,5100090428,"(2,048.00)",PANNONE CORPORATE LLP (EMP)
TfGM,Transport,Capital Costs - Legal Services,02/02/2016,5100090441,"2,047.50",PANNONE CORPORATE LLP (EMP)
TfGM,Transport,Capital Costs - Legal Services,02/02/2016,5100090442,"2,835.00",PANNONE CORPORATE LLP (EMP)
TfGM,Transport,Programme Management Services,02/02/2016,5100090490,"11,200.00",PATTERSON PROJECT MANAGEMENT LTD
TfGM,Transport,Temporary Vacancy Cover,02/02/2016,5100089678,"5,037.76",PLUSWORK LTD
TfGM,Transport,Temporary Vacancy Cover,02/02/2016,5100089834,"3,374.64",PLUSWORK LTD
TfGM,Transport,Capital Costs - Programme and Project Management Services,02/02/2016,5100090348,"83,390.00",PRICEWATERHOUSECOOPERS
TfGM,Transport,Temporary Vacancy Cover,02/02/2016,5100090361,"3,920.00",PWS TECHNICAL SERVICES (UK) LIMITED
TfGM,Transport,Temporary Vacancy Cover,02/02/2016,5100090365,"3,136.00",PWS TECHNICAL SERVICES (UK) LIMITED
TfGM,Transport,Temporary Vacancy Cover,02/02/2016,5100090371,"2,744.00",PWS TECHNICAL SERVICES (UK) LIMITED
TfGM,Transport,Temporary Vacancy Cover,02/02/2016,5100090489,"8,449.30",RACHEL J CONSULTANCY SERVICES LTD
TfGM,Transport,Print & Media,02/02/2016,5100090461,"1,400.00",RAILSTAFF SELECT LTD
TfGM,Transport,Smart Ticketing,02/02/2016,5100089452,"2,250.00",Robert Walters Plc
TfGM,Transport,Smart Ticketing,02/02/2016,5100090188,"2,340.00",Robert Walters Plc
TfGM,Transport,Smart Ticketing,02/02/2016,5100090189,936.00,Robert Walters Plc
TfGM,Transport,Smart Ticketing,02/02/2016,5100090190,936.00,Robert Walters Plc
TfGM,Transport,Smart Ticketing,02/02/2016,5100090193,"1,350.00",Robert Walters Plc
TfGM,Transport,Bus Support Services,02/02/2016,5100090389,"1,237.50",ROY MCDONALD CONSULTING LTD
TfGM,Transport,Traffic Signal Works,02/02/2016,5100089429,"23,908.14",TELENT TECHNOLOGY SERVICES LIMITED
TfGM,Transport,Traffic Signal Works,02/02/2016,5100090340,"43,969.25",TELENT TECHNOLOGY SERVICES LIMITED
TfGM,Corporate Services,Telecommunications,02/02/2016,5100089445,"1,336.38",THE PHONE CO OP LTD
TfGM,Transport,Cleaning,02/02/2016,5100090436,444.00,TUDOR CONTRACT CLEANERS LTD
TfGM,Transport,Capital Costs - Programme and Project Management Services,02/02/2016,5100090347,"2,746.25",TXM RECRUIT LIMITED
TfGM,Transport,Capital Costs - Programme and Project Management Services,02/02/2016,5100090373,"1,070.00",TXM RECRUIT LIMITED
TfGM,Corporate Services,Subscriptions,02/02/2016,1900045167,"5,000.00",UK TRADE & INVESTMENT
TfGM,Transport,Print & Media,02/02/2016,5100089622,"1,558.15",W8DATA LTD
TfGM,Transport,Capital Costs - Consultation Support,02/02/2016,1900045170,"6,930.00",WIGAN COUNCIL
TfGM,Transport,Capital Costs - Legal Services,02/02/2016,1900045272,"34,669.00",WINCKWORTH SHERWOOD LLP
TfGM,Transport,Training,02/02/2016,5100090459,"1,190.00",WISE OWL BUSINESS SOLUTIONS LTD
TfGM,Transport,Driver Intervention Course Delivery Costs,03/02/2016,1900045315,"1,203.40",2020 FLEET TRAINING LTD
TfGM,Transport,Driver Intervention Course Delivery Costs,03/02/2016,1900045328,"1,243.40",A HOLT
TfGM,Transport,Driver Intervention Course Delivery Costs,03/02/2016,1900045362,765.80,A WOODWARD
TfGM,Transport,Capital Costs - Programme and Project Management Services,03/02/2016,5100090502,"5,535.00",ACUITY PROGRAMME MANAGEMENT LTD
TfGM,Transport,Capital Costs - Environmental & Ecological Support Services,03/02/2016,5100089088,"6,770.00",AECOM LTD
TfGM,Transport,Capital Costs - Architectural Services,03/02/2016,5100077681,"8,000.00",AHR ARCHITECTS LTD
TfGM,Transport,Capital Costs - Architectural Services,03/02/2016,5100087788,"10,400.00",AHR ARCHITECTS LTD
TfGM,Transport,Programme Management Services,03/02/2016,5100084554,"1,960.00",AJILON UK LIMITED T/A COMPUTER PEOP
TfGM,Transport,Vehicle Costs,03/02/2016,1200037472,888.32,ALLSTAR
TfGM,Transport,Capital Costs - Engineering Support Services,03/02/2016,5100089784,"1,427.99",ATKINS LTD
TfGM,Transport,Research Services,03/02/2016,5100089918,"11,592.81",ATKINS LTD
TfGM,Transport,Driver Intervention Course Delivery Costs,03/02/2016,1900045301,"1,312.80",B ASKHAM
TfGM,Transport,Driver Intervention Course Delivery Costs,03/02/2016,1900045310,656.40,BRECK SCHOOL OF MOTORING
TfGM,Transport,Driver Intervention Course Delivery Costs,03/02/2016,1900045327,"1,094.00",C HIRST
TfGM,Transport,Driver Intervention Course Delivery Costs,03/02/2016,1900045335,656.40,C MACCORMACK
TfGM,Transport,Print & Media,03/02/2016,5100090139,"2,072.00",CESTRIAN
TfGM,Transport,Driver Intervention Course Delivery Costs,03/02/2016,1900045313,"1,312.80",CRUISE DRIVER TRAINING
TfGM,Transport,Driver Intervention Course Delivery Costs,03/02/2016,1900045318,"1,094.00",D ELLIS
TfGM,Transport,Driver Intervention Course Delivery Costs,03/02/2016,1900045323,"1,641.00",D HEATHCOTE
TfGM,Transport,Driver Intervention Course Delivery Costs,03/02/2016,1900045352,547.00,D ROBINSON
TfGM,Transport,Driver Intervention Course Delivery Costs,03/02/2016,1900045361,935.97,D WALSH
TfGM,Transport,Driver Intervention Course Delivery Costs,03/02/2016,1900045350,"1,197.31",DRIVER ACADEMY
TfGM,Transport,Driver Intervention Course Delivery Costs,03/02/2016,1900045312,656.40,DRIVERSKILLS
TfGM,Transport,Driver Intervention Course Delivery Costs,03/02/2016,1900045341,"1,203.40",DRIVETIME SCHOOL OF MOTORING
TfGM,Transport,Telecommunications,03/02/2016,5100089808,"2,324.80",EASYNET GLOBAL SERVICES
TfGM,Transport,Telecommunications,03/02/2016,5100089810,(656.64),EASYNET GLOBAL SERVICES
TfGM,Transport,Telecommunications,03/02/2016,5100089829,"(1,076.96)",EASYNET GLOBAL SERVICES
TfGM,Transport,Security Services,03/02/2016,5100089950,894.96,FIRST MANCHESTER
TfGM,Transport,Driver Intervention Course Delivery Costs,03/02/2016,1900045311,"1,744.31",G CLIFFE
TfGM,Transport,Driver Intervention Course Delivery Costs,03/02/2016,1900045353,656.40,G ROBINSON
TfGM,Transport,Driver Intervention Course Delivery Costs,03/02/2016,1900045314,984.60,H DICKINSON
TfGM,Transport,Driver Intervention Course Delivery Costs,03/02/2016,1900045326,"1,634.91",HOGHTON DRIVING SCHOOL
TfGM,Transport,Driver Intervention Course Delivery Costs,03/02/2016,1900045316,975.20,I DUFF
TfGM,Transport,Driver Intervention Course Delivery Costs,03/02/2016,1900045324,984.60,INSIGHT 2 DRIVE
TfGM,Transport,Driver Intervention Course Delivery Costs,03/02/2016,1900045344,"1,312.80",J MURPHY
TfGM,Transport,Driver Intervention Course Delivery Costs,03/02/2016,1900045331,"1,154.76",K JONES
TfGM,Transport,Driver Intervention Course Delivery Costs,03/02/2016,1900045308,905.58,L CHAPMAN
TfGM,Transport,Driver Intervention Course Delivery Costs,03/02/2016,1900045303,"1,203.40",M BOLTON DRIVER TRAINING
TfGM,Transport,Driver Intervention Course Delivery Costs,03/02/2016,1900045305,"1,531.60",MARK BRENNAN DRIVER TRAINING LIMITE
TfGM,Transport,Property & Equipment Maintenance,03/02/2016,5100088693,"22,710.61",METROLINK RATP DEV LTD
TfGM,Transport,Driver Intervention Course Delivery Costs,03/02/2016,1900045358,984.60,MILES AHEADDRIVER TRAINING LTD
TfGM,Transport,Driver Intervention Course Delivery Costs,03/02/2016,1900045340,"1,482.96",MORRIS SCHOOL OF MOTORING
TfGM,Transport,Capital Costs - Programme and Project Management Services,03/02/2016,5100089632,"2,515.50",MORSON INTERNATIONAL
TfGM,Corporate Services,IS Support Services,03/02/2016,5100089633,"2,284.40",MORSON INTERNATIONAL
TfGM,Transport,Capital Costs - Programme and Project Management Services,03/02/2016,5100089635,"1,664.00",MORSON INTERNATIONAL
TfGM,Transport,Capital Costs - Programme and Project Management Services,03/02/2016,5100089921,"1,935.00",MORSON INTERNATIONAL
TfGM,Transport,Capital Costs - Programme and Project Management Services,03/02/2016,5100089923,"2,000.00",MORSON INTERNATIONAL
TfGM,Transport,Smart Ticketing,03/02/2016,5100089924,"3,000.00",MORSON INTERNATIONAL
TfGM,Transport,Capital Costs - Design Support Services,03/02/2016,5100090495,"2,056.46",MOTT MACDONALD LTD
TfGM,Transport,Capital Costs - Design Support Services,03/02/2016,5100090497,"2,177.56",MOTT MACDONALD LTD
TfGM,Corporate Services,Planning Support Services,03/02/2016,5100090527,"4,950.00",MOTT MACDONALD LTD
TfGM,Corporate Services,Planning Support Services,03/02/2016,5100090531,"2,750.00",MOTT MACDONALD LTD
TfGM,Transport,Driver Intervention Course Delivery Costs,03/02/2016,1900045338,696.40,O MAYSON
TfGM,Transport,Vehicle Repairs & Maintenance,03/02/2016,5100090509,"4,464.42",OPTARE LTD
TfGM,Transport,Vehicle Repairs & Maintenance,03/02/2016,5100090510,"4,499.17",OPTARE LTD
TfGM,Transport,Driver Intervention Course Delivery Costs,03/02/2016,1900045300,"1,233.78",P AINSWORTH
TfGM,Transport,Driver Intervention Course Delivery Costs,03/02/2016,1900045306,"1,094.00",P BROMLEY
TfGM,Transport,Driver Intervention Course Delivery Costs,03/02/2016,1900045309,"2,821.00",P CLARKE
TfGM,Transport,Driver Intervention Course Delivery Costs,03/02/2016,1900045321,"1,203.40",P GLEADALL
TfGM,Transport,Driver Intervention Course Delivery Costs,03/02/2016,1900045355,"2,078.60",PAS DRIVING
TfGM,Transport,Traffic and Transportation Surveys,03/02/2016,5100089983,590.25,PLUSWORK LTD
TfGM,Transport,Capital Costs - Land Acquisition and Related Costs,03/02/2016,5100089832,"41,428.28",Q HOTELS SERVICES LTD
TfGM,Transport,Driver Intervention Course Delivery Costs,03/02/2016,1900045322,"1,641.00",R GREENOUGH
TfGM,Transport,Driver Intervention Course Delivery Costs,03/02/2016,1900045325,765.80,R HILL
TfGM,Transport,Driver Intervention Course Delivery Costs,03/02/2016,1900045343,"1,346.71",S MUIRHEAD
TfGM,Transport,Driver Intervention Course Delivery Costs,03/02/2016,1900045349,765.80,S RATHORE
TfGM,Transport,Driver Intervention Course Delivery Costs,03/02/2016,1900045354,"1,531.60",S SHAH
TfGM,Transport,Driver Intervention Course Delivery Costs,03/02/2016,1900045346,"1,094.00",SHELLIS SCHOOL OF MOTORING
TfGM,Transport,Traffic Signal Works,03/02/2016,5100090099,"29,541.07",SIEMENS PLC
TfGM,Transport,Traffic Signal Works,03/02/2016,5100090100,"15,955.99",SIEMENS PLC
TfGM,Transport,Driver Intervention Course Delivery Costs,03/02/2016,1900045319,"1,750.38",SMJ SCHOOL OF MOTORING
TfGM,Transport,Driver Intervention Course Delivery Costs,03/02/2016,1900045333,"1,525.51",STEVEN LLOYD APPROVED SCHOOL OF MOT
TfGM,Transport,Driver Intervention Course Delivery Costs,03/02/2016,1900045337,529.56,T MADDEN
TfGM,Transport,Driver Intervention Course Delivery Costs,03/02/2016,1900045351,875.20,T MADDEN
TfGM,Transport,IS Software & Maintenance,03/02/2016,5100089843,"20,301.00",TRAPEZE GROUP (UK) LTD
TfGM,Transport,Cleaning,03/02/2016,5100090132,"1,415.05",TUDOR CONTRACT CLEANERS LTD
TfGM,Transport,Cleaning,03/02/2016,5100090437,"1,295.00",TUDOR CONTRACT CLEANERS LTD
TfGM,Transport,Cleaning,03/02/2016,5100090438,"1,221.00",TUDOR CONTRACT CLEANERS LTD
TfGM,Transport,Driver Intervention Course Delivery Costs,03/02/2016,1900045317,875.20,V EDWARDS
TfGM,Transport,Driver Intervention Course Delivery Costs,03/02/2016,1900045320,"2,072.51",VINCENT'S DRIVING SCHOOL
TfGM,Transport,Capital Costs - Highway Alteration Works,03/02/2016,5100090101,"9,750.00",WIGAN COUNCIL
TfGM,Transport,Sustainable Transport Support Services,03/02/2016,5100090127,"4,731.20",WIGAN LEISURE & CULTURE TRUST
TfGM,Transport,Driver Intervention Course Delivery Costs,03/02/2016,1900045330,915.20,WIRRAL DRIVING LTD
TfGM,Transport,Project Support Services,03/02/2016,5100089439,"1,609.68",WSP UK LTD
TfGM,Transport,Capital Costs - Programme and Project Management Services,03/02/2016,5100089735,"3,650.00",WSP UK LTD
TfGM,Transport,Heavy Rail Support Services,04/02/2016,5100090346,"12,800.00",STATIONGURU LIMITED
TfGM,Corporate Services,Planning Support Services,04/02/2016,5100090541,"10,479.52",STRATEGIC TARGETS (MICHAEL SMART)
TfGM,Transport,Community Engagement Services,05/02/2016,5100090635,"3,856.17",AECOM LTD
TfGM,Transport,Community Engagement Services,05/02/2016,5100090639,"6,448.90",AECOM LTD
TfGM,Transport,Community Engagement Services,05/02/2016,5100090642,"32,980.72",AECOM LTD
TfGM,Transport,Driver Intervention Course Delivery Costs,05/02/2016,5100090636,"2,393.60",BOLTON WHITES HOTEL LTD
TfGM,Transport,Security Services,05/02/2016,5100090566,"2,232.09",CARLISLE SECURITY SERVICES LTD
TfGM,Transport,Security Services,05/02/2016,5100090567,"7,024.55",CARLISLE SECURITY SERVICES LTD
TfGM,Transport,Security Services,05/02/2016,5100090568,"4,602.07",CARLISLE SECURITY SERVICES LTD
TfGM,Transport,Utilities & Energy,05/02/2016,5100090602,535.00,CERTAS ENERGY UK LTD
TfGM,Transport,Capital Costs - Legal Services,05/02/2016,5100090655,"48,582.30",DLA PIPER UK LLP
TfGM,Transport,Security Services,05/02/2016,5100090553,"1,709.95",G4S FINANCE SHARED SERVICE CENTRE
TfGM,Transport,Temporary Vacancy Cover,05/02/2016,1900045292,"19,549.45",HAYS SPECIALIST RECRUITMENT LTD
TfGM,Transport,Capital Costs - Project Support Services,05/02/2016,5100090678,"1,000.00",IAN ROWE ASSOCIATES LTD
TfGM,Transport,Heavy Rail Support Services,05/02/2016,5100090656,"5,362.50",KPMG
TfGM,Transport,Print & Media,05/02/2016,5100090669,"1,110.00",MANCHESTER CITY COUNCIL
TfGM,Transport,Print & Media,05/02/2016,5100090614,"2,750.00",MARGIE AND ME LIMITED
TfGM,Transport,Capital Costs - Design Support Services,05/02/2016,5100090496,"12,080.85",MOTT MACDONALD LTD
TfGM,Transport,Capital Costs - Design Support Services,05/02/2016,5100090616,"3,737.00",MOTT MACDONALD LTD
TfGM,Transport,Metrolink Operating Costs,05/02/2016,5100090606,"192,002.47",MPACT THALES
TfGM,Transport,Rail Franchise,05/02/2016,1200037472,"3,659,029.14",NORTHERN RAIL LTD
TfGM,Transport,Capital Costs - Programme and Project Management Services,05/02/2016,5100090627,"2,240.00",PWS TECHNICAL SERVICES (UK) LIMITED
TfGM,Transport,Property & Equipment Maintenance,05/02/2016,5100090668,"8,175.00",TITAN SECURITY FENCING LIMITED
TfGM,Transport,Street Furniture Equipment,05/02/2016,5100089680,825.00,TRUEFORM ENGINEERING LTD
TfGM,Transport,Capital Costs - Project Support Services,09/02/2016,5100089451,"6,858.00",AECOM LTD
TfGM,Transport,Research Services,09/02/2016,5100090832,"5,300.00",AECOM LTD
TfGM,Transport,Paper and Printing Consumables,09/02/2016,5100089886,"1,514.21",ANTALIS LTD
TfGM,Transport,IS Support & Maintenance,09/02/2016,5100090664,"5,000.00",APPLIED CARD TECHNOLOGIES
TfGM,Transport,Smart Ticketing,09/02/2016,5100090850,"14,619.05",APT BUSINESS CONSULTANTS LTD
TfGM,Transport,Design Support Services,09/02/2016,5100089922,"24,742.50",ARCADIS LLP
TfGM,Transport,Print & Media,09/02/2016,5100090684,759.00,ARMIN & BUTLER LTD
TfGM,Transport,Capital Costs - Design Support Services,09/02/2016,5100089644,"1,920.00",ATKINS LTD
TfGM,Transport,Capital Costs - Project Support Services,09/02/2016,5100089943,"18,835.71",ATKINS LTD
TfGM,Transport,Capital Costs - Land Acquisition and Related Costs,09/02/2016,5100090647,891.99,ATKINS LTD
TfGM,Transport,Programme and Project Management Services,09/02/2016,5100090676,"9,800.00",BLACC CONSULTING LLP
TfGM,Transport,Training,09/02/2016,5100090755,"7,960.00",BOLTON COMMUNITY TRANSPORT
TfGM,Transport,Miscellaneous External costs,09/02/2016,5100090825,630.00,CENTRE FOR ASSESSMENT
TfGM,Transport,Legal Services,09/02/2016,5100090771,"6,724.50",DLA PIPER UK LLP
TfGM,Transport,Legal Services,09/02/2016,5100090779,"24,684.68",EVERSHEDS LLP
TfGM,Transport,Property & Equipment Maintenance,09/02/2016,5100090683,"2,121.73",FES FM LTD
TfGM,Transport,Capital Costs - Programme and Project Management Services,09/02/2016,5100090719,"1,482.25",FIRCROFT ENGINEERING SERVICES LTD
TfGM,Transport,Secondment,09/02/2016,5100090848,"13,544.55",FIRST KEOLIS TRANSPENNINE LTD
TfGM,Transport,Postage Costs,09/02/2016,5100090754,"6,000.00",FRAMA UK LIMITED
TfGM,Transport,Driver Intervention Course Delivery Costs,09/02/2016,5100090809,984.60,G VANN
TfGM,Transport,Capital Costs - Site Investigation Services,09/02/2016,5100090687,"82,130.28",GEOTECHNICS LIMITED
TfGM,Transport,Vehicle Costs,09/02/2016,5100090631,"1,430.00",GREEN TRIANGLE BUSES LTD
TfGM,Transport,Capital Costs - Engineering Support Services,09/02/2016,5100089031,"7,435.34",GUTTERIDGE HASKINS AND DAVEY LTD
TfGM,Transport,Temporary Vacancy Cover,09/02/2016,1900045114,"12,883.33",HAYS SPECIALIST RECRUITMENT LTD
TfGM,Transport,Print & Media,09/02/2016,5100090709,"9,999.99",HOOTSUITE MEDIA INC
TfGM,Transport,Capital Costs - Capital Project Main Contract Works,09/02/2016,5100088732,"28,037.35",JAMIESON CONTRACTING (NORTH WEST) L
TfGM,Transport,Driver Intervention Course Delivery Costs,09/02/2016,5100090787,650.00,K EKERT
TfGM,Corporate Services,Property Support Services,09/02/2016,5100090008,"8,395.00",LESLIE ROBERTS AND CO LTD
TfGM,Transport,Print & Media,09/02/2016,5100090052,560.00,MANCHESTER CITY COUNCIL
TfGM,Corporate Services,IS Support Services,09/02/2016,5100090748,"5,775.00",MAPSAR LTD
TfGM,Transport,Vehicle Repairs & Maintenance,09/02/2016,5100089965,"1,972.00",MCKENNA BROTHERS
TfGM,Transport,Cycling Support Services,09/02/2016,5100090786,650.00,MESSAGE ENTERPRISE CENTRE
TfGM,Transport,Street Furniture Equipment,09/02/2016,5100090749,"7,525.00",METFAST LTD
TfGM,Transport,Street Furniture Equipment,09/02/2016,5100090750,"9,450.00",METFAST LTD
TfGM,Transport,Security Services,09/02/2016,5100090837,"2,949.76",METROLINK RATP DEV LTD
TfGM,Transport,Metrolink Operating Costs,09/02/2016,5100090838,"8,160.00",METROLINK RATP DEV LTD
TfGM,Transport,Metrolink Operating Costs,09/02/2016,5100090840,"796,263.00",METROLINK RATP DEV LTD
TfGM,Transport,Metrolink Operating Costs,09/02/2016,5100090841,"784,811.00",METROLINK RATP DEV LTD
TfGM,Transport,Print & Media,09/02/2016,5100090746,"1,042.00",MIRAGE DISPLAY LTD
TfGM,Transport,Heavy Rail Support Services,09/02/2016,5100090652,"1,400.00",NETWORK RAIL
TfGM,Transport,Training,09/02/2016,5100089704,814.00,NORTH WEST EMPLOYERS
TfGM,Transport,Training,09/02/2016,5100090657,(450.00),NORTH WEST EMPLOYERS
TfGM,Transport,Capital Costs - Legal Services,09/02/2016,5100090735,562.50,PANNONE AND PARTNERS
TfGM,Transport,Capital Costs - Legal Services,09/02/2016,5100090736,"1,170.00",PANNONE AND PARTNERS
TfGM,Transport,Capital Costs - Legal Services,09/02/2016,5100090729,"2,205.00",PANNONE CORPORATE LLP (EMP)
TfGM,Transport,Capital Costs - Legal Services,09/02/2016,5100090731,832.50,PANNONE CORPORATE LLP (EMP)
TfGM,Corporate Services,Legal Services,09/02/2016,5100090753,"2,227.50",PANNONE CORPORATE LLP (EMP)
TfGM,Corporate Services,Legal Services,09/02/2016,5100090790,"3,635.46",PANNONE CORPORATE LLP (EMP)
TfGM,Transport,Print & Media,09/02/2016,5100089693,782.04,PARAGON GROUP UK LTD (A/CS REC)
TfGM,Transport,Capital Costs - Programme and Project Management Services,09/02/2016,5100090164,"2,058.55",PERTEMPS PROFESSIONAL STAFFING LTD
TfGM,Transport,Traffic and Transportation Surveys,09/02/2016,5100090724,"4,321.75",PLUSWORK LTD
TfGM,Transport,IS Consumables,09/02/2016,5100079123,"1,125.00",POINTER LTD
TfGM,Corporate Services,Temporary Vacancy Cover,09/02/2016,5100090024,"2,240.00",PWS TECHNICAL SERVICES (UK) LIMITED
TfGM,Transport,Capital Costs - Project Support Services,09/02/2016,5100090721,875.00,RIDER LEVETT BUCKNALL UK LIMITED
TfGM,Transport,Project Management Services,09/02/2016,5100090194,"3,975.00",Robert Walters Plc
TfGM,Transport,Project Management Services,09/02/2016,5100090195,"1,590.00",Robert Walters Plc
TfGM,Transport,Project Management Services,09/02/2016,5100090196,"1,590.00",Robert Walters Plc
TfGM,Transport,Smart Ticketing,09/02/2016,5100090197,"2,250.00",Robert Walters Plc
TfGM,Transport,Temporary Vacancy Cover,09/02/2016,5100090198,841.01,Robert Walters Plc
TfGM,Transport,Smart Ticketing,09/02/2016,5100090199,"2,340.00",Robert Walters Plc
TfGM,Transport,Cycle Training Scheme,09/02/2016,5100090200,"2,750.00",Robert Walters Plc
TfGM,Corporate Services,Temporary Vacancy Cover,09/02/2016,5100090201,701.63,Robert Walters Plc
TfGM,Transport,Highway Safety Support Services,09/02/2016,5100089897,"42,255.00",ROCHDALE MBC
TfGM,Transport,IS Software & Maintenance,09/02/2016,5100090784,"1,128.60",SCOREBUDDY (SENTIENT SOLUTIONS LIMI
TfGM,Transport,Capital Costs - Computer and Communications Equipment,09/02/2016,5100090644,562.96,TANGIBLE BENEFIT LTD
TfGM,Transport,Capital Costs - Public Art,09/02/2016,5100090700,"1,500.00",THE HAMILTON PROJECT
TfGM,Transport,Human Resource Services,09/02/2016,5100090843,967.00,VACANCY FILLER LTD
TfGM,Transport,IS Support Services,09/02/2016,5100089565,"19,690.06",VIX TECHNOLOGY LTD
TfGM,Transport,IS Support & Maintenance,09/02/2016,5100089566,"5,920.79",VIX TECHNOLOGY LTD
TfGM,Corporate Services,Procurement Services,09/02/2016,5100090752,"2,598.54",WSP UK LTD
TfGM,Transport,Vehicle Costs,10/02/2016,1200037487,766.64,ALLSTAR
TfGM,Transport,Capital Costs - Utility & Service Diversion Costs,10/02/2016,5100090984,(604.53),BT OPENREACH (SALFORD)
TfGM,Transport,Capital Costs - Utility & Service Diversion Costs,10/02/2016,5100090986,"(52,045.63)",BT OPENREACH (SALFORD)
TfGM,Transport,Capital Costs - Legal Services,10/02/2016,1900045364,"15,000.00",DLA PIPER UK LLP
TfGM,Transport,Capital Costs - Legal Services,10/02/2016,1900045365,"13,000.00",IMPERIAL WAR MUSEUMS
TfGM,Corporate Services,Computer Support and Licences,10/02/2016,5100087896,"6,532.00",NITRO
TfGM,Transport,Subscriptions,11/02/2016,5100090783,976.56,EMTA
TfGM,Transport,Vehicle Costs,11/02/2016,1900045426,"2,256.30",QUARTIX LIMITED
TfGM,Corporate Services,Other Equipment,11/02/2016,5100091016,"70,448.30",SECURE POWER LTD
TfGM,Transport,Utilities & Energy,11/02/2016,1900045391,623.99,SWALEC
TfGM,Transport,Utilities & Energy,11/02/2016,1900045392,"3,445.55",SWALEC
TfGM,Transport,Utilities & Energy,11/02/2016,1900045394,"2,013.90",SWALEC
TfGM,Transport,Utilities & Energy,11/02/2016,1900045395,920.24,SWALEC
TfGM,Transport,Utilities & Energy,11/02/2016,1900045396,"1,900.83",SWALEC
TfGM,Transport,Utilities & Energy,11/02/2016,1900045399,"4,002.88",SWALEC
TfGM,Transport,Utilities & Energy,11/02/2016,1900045400,513.09,SWALEC
TfGM,Transport,Utilities & Energy,11/02/2016,1900045402,"1,151.43",SWALEC
TfGM,Transport,Utilities & Energy,11/02/2016,1900045405,"2,853.95",SWALEC
TfGM,Transport,Utilities & Energy,11/02/2016,1900045407,"1,008.11",SWALEC
TfGM,Transport,Utilities & Energy,11/02/2016,1900045409,"1,004.33",SWALEC
TfGM,Transport,Utilities & Energy,11/02/2016,1900045411,"1,140.62",SWALEC
TfGM,Transport,Utilities & Energy,11/02/2016,1900045413,965.81,SWALEC
TfGM,Transport,Utilities & Energy,11/02/2016,1900045416,600.04,SWALEC
TfGM,Transport,Utilities & Energy,11/02/2016,1900045418,801.31,SWALEC
TfGM,Transport,Utilities & Energy,11/02/2016,1900045422,"1,088.28",SWALEC
TfGM,Transport,Utilities & Energy,11/02/2016,1900045423,471.41,SWALEC
TfGM,Transport,Utilities & Energy,11/02/2016,1900045454,"1,069.68",SWALEC
TfGM,Transport,Utilities & Energy,11/02/2016,1900045455,"2,290.76",SWALEC
TfGM,Transport,Telecommunications,11/02/2016,5100091023,"1,335.24",ZEN INTERNET LTD
TfGM,Transport,Community Engagement Services,12/02/2016,5100090166,"1,034.91",AECOM LTD
TfGM,Transport,Research Services,12/02/2016,5100090429,"9,672.99",AECOM LTD
TfGM,Corporate Services,Legal Services,12/02/2016,5100090221,"55,000.00",AHR ARCHITECTS LTD
TfGM,Transport,Training,12/02/2016,5100090876,"2,000.00",ALCUMUS ISOQAR LTD
TfGM,Transport,Training,12/02/2016,5100090878,"(1,000.00)",ALCUMUS ISOQAR LTD
TfGM,Transport,CCTV Support Services,12/02/2016,5100090009,720.00,ALTRON COMMUNICATIONS EQUIPMENT LTD
TfGM,Transport,Smart Ticketing,12/02/2016,5100090907,"1,400.00",AMSACOM LIMITED
TfGM,Transport,Design Support Services,12/02/2016,5100090649,"14,175.00",ARCADIS LLP
TfGM,Transport,Capital Costs - Programme and Project Management Services,12/02/2016,5100090650,"7,650.00",ARCADIS LLP
TfGM,Transport,Capital Costs - Project Support Services,12/02/2016,5100089692,"6,500.00",ATKINS LTD
TfGM,Transport,Capital Costs - Project Support Services,12/02/2016,5100089946,"4,783.32",ATKINS LTD
TfGM,Transport,Vehicle Costs,12/02/2016,5100090993,"3,113.31",AUTOMOTIVE LEASING
TfGM,Transport,Vehicle Costs,12/02/2016,5100090994,"3,113.31",AUTOMOTIVE LEASING
TfGM,Transport,Vehicle Costs,12/02/2016,5100090995,"3,113.31",AUTOMOTIVE LEASING
TfGM,Transport,Driver Intervention Course Delivery Costs,12/02/2016,5100090980,"1,930.18",B DAVIES
TfGM,Corporate Services,Insurance,12/02/2016,5100091068,"1,443.00",BERRYMANS LACE MAWER LLP
TfGM,Corporate Services,Insurance,12/02/2016,5100091069,"1,091.95",BERRYMANS LACE MAWER LLP
TfGM,Transport,Cycle Training Scheme,12/02/2016,5100090146,"1,000.00",BIKE RIGHT!
TfGM,Transport,Cycle Training Scheme,12/02/2016,5100090148,"5,000.00",BIKE RIGHT!
TfGM,Transport,Cycle Training Scheme,12/02/2016,5100090152,666.67,BIKE RIGHT!
TfGM,Transport,Capital Costs - Legal Services,12/02/2016,5100088608,"18,790.50",BIRCHAM DYSON BELL
TfGM,Transport,Capital Costs - Programme and Project Management Services,12/02/2016,5100090940,"14,000.00",BLACC CONSULTING LLP
TfGM,Transport,Programme and Project Management Services,12/02/2016,5100091002,"10,150.00",BLACC CONSULTING LLP
TfGM,Transport,Capital Costs - IS Support Services,12/02/2016,5100090689,"2,500.00",BLUE NETWORK SOLUTIONS LTD
TfGM,Transport,Driver Intervention Course Delivery Costs,12/02/2016,5100090310,"5,500.00",BOLTON MIDDLEBROOK LEISURE TRUST
TfGM,Transport,CCTV Support Services,12/02/2016,5100090311,"13,797.69",BT ENGAGE IT
TfGM,Transport,Driver Intervention Course Delivery Costs,12/02/2016,5100090448,"5,200.00",BURY MBC
TfGM,Corporate Services,IS Software & Maintenance,12/02/2016,5100090685,"3,330.21",Casewise
TfGM,Transport,Concessionary Reimbursement,12/02/2016,1900045499,895.00,CHADDERTON CARS
TfGM,Corporate Services,Employee Reimbursed Costs,12/02/2016,5100090941,"10,501.00",CHILDCARE VOUCHERS LTD
TfGM,Corporate Services,Computer Support and Licences,12/02/2016,5100090903,"2,000.00",CODE COMPUTER LOVE
TfGM,Transport,Professional Services,12/02/2016,5100090911,"2,220.34",COMMERCIAL STRATEGIES LTD
TfGM,Transport,Traffic and Transportation Surveys,12/02/2016,5100091095,"1,095.00",CTS TRAFFIC & TRANSPORTATION
TfGM,Transport,Cycle Training Scheme,12/02/2016,5100090881,"1,512.00",CYCLES RECYCLED CIC
TfGM,Transport,Print & Stationery ,12/02/2016,5100090992,902.40,ESP LTD
TfGM,Transport,Vehicle Repairs & Maintenance,12/02/2016,5100090316,945.21,FIRST MANCHESTER
TfGM,Transport,Vehicle Repairs & Maintenance,12/02/2016,5100090318,540.12,FIRST MANCHESTER
TfGM,Corporate Services,Human Resource Services,12/02/2016,1900045168,"5,950.00",GATENBY SANDERSON
TfGM,Transport,Capital Costs - Project Support Services,12/02/2016,5100090156,"61,208.00",GEORGE COX AND SONS LTD
TfGM,Transport,Accessible Transport,12/02/2016,1200037487,"388,084.00",GMATL
TfGM,Transport,Print & Media,12/02/2016,5100090060,750.00,GUARDIAN NEWS & MEDIA LTD
TfGM,Transport,Capital Costs - Legal Services,12/02/2016,1900045468,"1,649.75",HOVIS LTD
TfGM,Transport,Capital Costs - Legal Services,12/02/2016,1900045469,550.00,HOVIS LTD
TfGM,Transport,Infrastructure Support Services,12/02/2016,5100089967,"5,153.40",JACOBS UK LTD
TfGM,Transport,Property & Equipment Maintenance,12/02/2016,5100090640,867.47,JAMIESON CONTRACTING (NORTH WEST) L
TfGM,Transport,Street Furniture Equipment,12/02/2016,5100091018,"1,694.00",JC DECAUX UK LTD
TfGM,Transport,Street Furniture Equipment,12/02/2016,5100091019,"1,737.00",JC DECAUX UK LTD
TfGM,Transport,Procurement Services,12/02/2016,5100091027,"1,425.00",JETFIRE ASSOCIATES LIMITED
TfGM,Corporate Services,Research Services,12/02/2016,5100090234,"6,120.00",JMP CONSULTANTS LTD
TfGM,Transport,Procurement Services,12/02/2016,5100091089,"10,500.00",JULIAN BENSON ASSOCIATES LTD
TfGM,Corporate Services,Land Acquisition and Related Costs,12/02/2016,1900045115,"15,000.00",MANCHESTER CITY COUNCIL
TfGM,Transport,Property & Equipment Maintenance,12/02/2016,5100090287,"1,044.00",MANCHESTER CITY COUNCIL
TfGM,Transport,Property & Equipment Maintenance,12/02/2016,5100090304,696.00,MANCHESTER CITY COUNCIL
TfGM,Transport,Driver Intervention Course Delivery Costs,12/02/2016,5100090418,"3,737.00",MANCHESTER CITY COUNCIL
TfGM,Transport,Driver Intervention Course Delivery Costs,12/02/2016,5100090419,764.20,MANCHESTER CITY COUNCIL
TfGM,Transport,Print & Media,12/02/2016,5100090536,"30,000.00",MARKETING MANCHESTER
TfGM,Transport,Capital Costs - Programme and Project Management Services,12/02/2016,5100090440,"2,062.50",MATCHTECH GROUP PLC
TfGM,Transport,Property & Equipment Maintenance,12/02/2016,5100090939,"25,400.00",METROLINK RATP DEV LTD
TfGM,Transport,Capital Costs - Programme and Project Management Services,12/02/2016,5100090071,"1,935.00",MORSON INTERNATIONAL
TfGM,Transport,Capital Costs - Programme and Project Management Services,12/02/2016,5100090073,"1,591.00",MORSON INTERNATIONAL
TfGM,Transport,Capital Costs - Programme and Project Management Services,12/02/2016,5100090145,"2,000.00",MORSON INTERNATIONAL
TfGM,Corporate Services,IS Support Services,12/02/2016,5100090177,"2,284.40",MORSON INTERNATIONAL
TfGM,Transport,Capital Costs - Programme and Project Management Services,12/02/2016,5100090294,"1,664.00",MORSON INTERNATIONAL
TfGM,Transport,Project Support Services,12/02/2016,5100090765,"2,340.00",MOTT MACDONALD LTD
TfGM,Transport,Metrolink Operating Costs,12/02/2016,5100091039,"1,572.18",MPACT THALES
TfGM,Transport,Capital Costs - Capital Project Main Contract Works,12/02/2016,5100091040,"(5,000.00)",MPACT THALES
TfGM,Transport,Capital Costs - Capital Project Main Contract Works,12/02/2016,5100091041,"7,523.12",MPACT THALES
TfGM,Transport,Metrolink Operating Costs,12/02/2016,5100091042,"4,468.32",MPACT THALES
TfGM,Transport,Capital Costs - Rail Construction Works,12/02/2016,5100084801,"34,438.03",NETWORK RAIL
TfGM,Transport,Vehicle Repairs & Maintenance,12/02/2016,5100090485,514.51,NORTHERN COMMERCIALS
TfGM,Transport,Property & Equipment Maintenance,12/02/2016,5100089920,"9,390.50",NOVUS PROPERTY SOLUTIONS LTD
TfGM,Transport,Highway Safety Support Services,12/02/2016,5100090134,"24,461.43",OLDHAM MBC
TfGM,Transport,Capital Costs - Engineering Support Services,12/02/2016,5100089651,"21,600.00",OVE ARUP & PARTNERS INTERNATIONAL L
TfGM,Transport,Capital Costs - Planning Support Services,12/02/2016,5100090659,"(1,500.00)",OVE ARUP & PARTNERS INTERNATIONAL L
TfGM,Transport,Programme and Project Management Services,12/02/2016,5100090964,"7,940.00",PEAK PERFORMANCE PROFESSIONAL CONTR
TfGM,Transport,Capital Costs - Programme and Project Management Services,12/02/2016,5100090350,"2,058.55",PERTEMPS PROFESSIONAL STAFFING LTD
TfGM,Transport,Driver Intervention Course Delivery Costs,12/02/2016,5100091001,"1,312.80",PETERS DRIVING SCHOOL
TfGM,Transport,Traffic and Transportation Surveys,12/02/2016,5100090202,"1,148.40",PLUSWORK LTD
TfGM,Transport,Traffic and Transportation Surveys,12/02/2016,5100090207,"4,771.86",PLUSWORK LTD
TfGM,Transport,Traffic and Transportation Surveys,12/02/2016,5100090241,590.25,PLUSWORK LTD
TfGM,Corporate Services,IS Support Services,12/02/2016,5100090983,"11,200.00",PMA GLOBAL MOBILITY RESOURCES LTD
TfGM,Transport,Cycling Support Services,12/02/2016,5100090522,"1,050.00",POSITIVE STEPS
TfGM,Transport,Heavy Rail Support Services,12/02/2016,5100090162,"2,385.00",PRACTICUS LIMITED
TfGM,Corporate Services,Temporary Vacancy Cover,12/02/2016,5100090860,"4,480.00",PWS TECHNICAL SERVICES (UK) LIMITED
TfGM,Corporate Services,Temporary Vacancy Cover,12/02/2016,5100090863,"4,480.00",PWS TECHNICAL SERVICES (UK) LIMITED
TfGM,Corporate Services,Temporary Vacancy Cover,12/02/2016,5100090865,"4,480.00",PWS TECHNICAL SERVICES (UK) LIMITED
TfGM,Transport,Cycling Support Services,12/02/2016,5100090648,540.00,QUEENS HALL ACTION ON POVERTY
TfGM,Corporate Services,Temporary Vacancy Cover,12/02/2016,5100090694,"1,019.00",Robert Walters Plc
TfGM,Corporate Services,Temporary Vacancy Cover,12/02/2016,5100090695,"1,019.00",Robert Walters Plc
TfGM,Transport,Temporary Vacancy Cover,12/02/2016,5100090696,841.01,Robert Walters Plc
TfGM,Transport,Smart Ticketing,12/02/2016,5100090697,"2,250.00",Robert Walters Plc
TfGM,Transport,Project Management Services,12/02/2016,5100090698,"3,975.00",Robert Walters Plc
TfGM,Corporate Services,Temporary Vacancy Cover,12/02/2016,5100090699,701.63,Robert Walters Plc
TfGM,Transport,Bus Station & Shelter Consumables,12/02/2016,5100090320,559.37,SHORROCK TRICHEM
TfGM,Transport,Bus Station & Shelter Consumables,12/02/2016,5100090607,569.93,SHORROCK TRICHEM
TfGM,Transport,Traffic Signal Works,12/02/2016,5100090061,"5,951.84",SIEMENS PLC
TfGM,Transport,Traffic Signal Works,12/02/2016,5100090062,"8,890.07",SIEMENS PLC
TfGM,Transport,Traffic Signal Works,12/02/2016,5100090063,"13,765.15",SIEMENS PLC
TfGM,Transport,Traffic Signal Works,12/02/2016,5100090223,"8,785.85",SIEMENS PLC
TfGM,Transport,Traffic Signal Works,12/02/2016,5100090224,"21,104.16",SIEMENS PLC
TfGM,Transport,Traffic Signal Works,12/02/2016,5100090235,"7,568.60",SIEMENS PLC
TfGM,Transport,Traffic Signal Works,12/02/2016,5100090462,"43,030.64",SIEMENS PLC
TfGM,Transport,Property & Equipment Maintenance,12/02/2016,5100090870,"2,140.00",SOLARIS TECHNOLOGIES LTD
TfGM,Transport,Security Services,12/02/2016,5100091061,819.00,STAGECOACH SERVICES LTD
TfGM,Transport,Capital Costs - Planning Support Services,12/02/2016,5100090220,"3,503.32",STEER DAVIES GLEEVE LTD
TfGM,Transport,Planning Support Services,12/02/2016,5100090313,"10,006.02",STEER DAVIES GLEEVE LTD
TfGM,Transport,Planning Support Services,12/02/2016,5100090420,"(6,908.17)",STEER DAVIES GLEEVE LTD
TfGM,Transport,Capital Costs - Capital Project Main Contract Works,12/02/2016,5100091009,"62,940.53",STOCKPORT MBC
TfGM,Transport,Capital Costs - Traffic Management and Monitoring Equipment,12/02/2016,5100090274,"5,696.50",SWARCO TRAFFIC LTD
TfGM,Transport,Transport Planning & Monitoring Services,12/02/2016,5100090920,"33,120.38",SYSTRA LTD
TfGM,Corporate Services,IS Consumables,12/02/2016,5100090827,"2,824.92",TANGIBLE BENEFIT LTD
TfGM,Transport,IS Consumables,12/02/2016,5100090829,"3,231.15",TANGIBLE BENEFIT LTD
TfGM,Transport,Cycle Training Scheme,12/02/2016,5100090948,750.00,THE NATIONWIDE CYCLING ACADEMY
TfGM,Transport,Room Hire,12/02/2016,5100090918,676.00,THE STUDIO
TfGM,Transport,IS Consumables,12/02/2016,5100090067,"2,300.00",TOTAL COMPUTERS LTD
TfGM,Transport,Concessionary Reimbursement,12/02/2016,1900045505,"1,544.00",TRAFFORD CARS LTD
TfGM,Transport,Cleaning,12/02/2016,5100090439,"1,036.00",TUDOR CONTRACT CLEANERS LTD
TfGM,Transport,Traffic Signal Works,12/02/2016,5100090504,"6,178.24",TYCO INTEGRATED FIRE AND SECURITY
TfGM,Corporate Services,IS Software & Maintenance,12/02/2016,5100090823,630.00,UK & IRELAND SAP USER GROUP LTD
TfGM,Transport,Utilities & Energy,12/02/2016,1700028917,"(3,296.85)",UNITED UTILITIES WATER PLC
TfGM,Transport,Utilities & Energy,12/02/2016,1900045462,"3,919.04",UNITED UTILITIES WATER PLC
TfGM,Transport,Utilities & Energy,12/02/2016,1900045463,"4,409.90",UNITED UTILITIES WATER PLC
TfGM,Transport,Project Management Services,12/02/2016,5100090236,"7,280.00",WSP UK LTD
TfGM,Transport,Supported Bus Services,15/02/2016,1900045549,"2,500.00",5 STAR PRIVATE HIRE
TfGM,Transport,Supported Bus Services,15/02/2016,1900045550,"26,042.29",ARRIVA MANCHESTER
TfGM,Transport,Supported Bus Services,15/02/2016,1900045551,"48,969.49",ARRIVA MANCHESTER
TfGM,Transport,Supported Bus Services,15/02/2016,1900045552,"3,763.33",ARRIVA MANCHESTER
TfGM,Transport,Concessionary Reimbursement,15/02/2016,1900045613,"310,500.00",ARRIVA MANCHESTER
TfGM,Transport,Supported Bus Services,15/02/2016,1900045527,"8,500.82",ATLANTIC TRAVEL GB
TfGM,Transport,Supported Bus Services,15/02/2016,1900045531,"112,621.61",BELLE VUE (MANCHESTER) LTD
TfGM,Transport,Supported Bus Services,15/02/2016,1900045532,"7,880.83",BELLE VUE (MANCHESTER) LTD
TfGM,Transport,Supported Bus Services,15/02/2016,1900045533,647.82,BELLE VUE (MANCHESTER) LTD
TfGM,Transport,Concessionary Reimbursement,15/02/2016,1900045616,515.00,BELLE VUE (MANCHESTER) LTD
TfGM,Transport,Supported Bus Services,15/02/2016,1900045560,"3,166.67",BULLITT CARS
TfGM,Transport,Supported Bus Services,15/02/2016,1900045547,"12,306.82",BULLOCKS
TfGM,Transport,Concessionary Reimbursement,15/02/2016,1900045614,"2,300.00",BULLOCKS
TfGM,Transport,Concessionary Reimbursement,15/02/2016,1900045615,"13,000.00",BURNLEY AND PENDLE
TfGM,Transport,Concessionary Reimbursement,15/02/2016,1900045617,"24,700.00",CENTREBUS LTD
TfGM,Transport,Supported Bus Services,15/02/2016,1900045510,"8,570.00",CHECKMATE TRANSPORT LTD
TfGM,Transport,Supported Bus Services,15/02/2016,1900045563,"7,772.72",CHESTERS COACHES
TfGM,Transport,Supported Bus Services,15/02/2016,1900045561,"4,836.36",CI WALLEY TA RINGWAY MINIBUS HIRE
TfGM,Transport,Supported Bus Services,15/02/2016,1900045524,"10,376.75",CUMFY BUS LTD
TfGM,Transport,Supported Bus Services,15/02/2016,1900045525,"42,088.33",CUMFY BUS LTD
TfGM,Transport,Supported Bus Services,15/02/2016,1900045526,"4,229.33",CUMFY BUS LTD
TfGM,Transport,Concessionary Reimbursement,15/02/2016,1900045619,"32,069.00",CUMFY BUS LTD
TfGM,Transport,Supported Bus Services,15/02/2016,1900045523,"12,360.83",ECO TRAVEL
TfGM,Transport,Concessionary Reimbursement,15/02/2016,1900045621,"3,000.00",FE FINCH
TfGM,Transport,Concessionary Reimbursement,15/02/2016,1900045620,"8,500.00",FIRST CALDERLINE
TfGM,Transport,Supported Bus Services,15/02/2016,1700028962,"(1,796.00)",FIRST MANCHESTER
TfGM,Transport,Supported Bus Services,15/02/2016,1900045544,"333,473.33",FIRST MANCHESTER
TfGM,Transport,Supported Bus Services,15/02/2016,1900045545,"126,507.40",FIRST MANCHESTER
TfGM,Transport,Supported Bus Services,15/02/2016,1900045546,"8,686.84",FIRST MANCHESTER
TfGM,Transport,Supported Bus Services,15/02/2016,1900045567,"28,252.36",GB COACHES
TfGM,Transport,Supported Bus Services,15/02/2016,1900045568,738.09,GB COACHES
TfGM,Transport,Supported Bus Services,15/02/2016,1900045522,"2,873.67",GMATL
TfGM,Transport,Supported Bus Services,15/02/2016,1900045517,"52,691.83",GO GOODWINS COACHES LTD
TfGM,Transport,Supported Bus Services,15/02/2016,1900045518,"89,934.58",GO GOODWINS COACHES LTD
TfGM,Transport,Supported Bus Services,15/02/2016,1900045519,"8,161.09",GO GOODWINS COACHES LTD
TfGM,Transport,Supported Bus Services,15/02/2016,1900045557,"14,034.37",GREEN TRIANGLE BUSES LTD
TfGM,Transport,Supported Bus Services,15/02/2016,1900045558,"139,160.92",GREEN TRIANGLE BUSES LTD
TfGM,Transport,Supported Bus Services,15/02/2016,1900045559,"6,663.76",GREEN TRIANGLE BUSES LTD
TfGM,Transport,Concessionary Reimbursement,15/02/2016,1900045622,"80,693.00",GREEN TRIANGLE BUSES LTD
TfGM,Transport,Supported Bus Services,15/02/2016,1900045511,"2,333.33",HORWICH PRIVATE HIRE LIMITED
TfGM,Transport,Concessionary Reimbursement,15/02/2016,1900045598,872.45,HORWICH PRIVATE HIRE LIMITED
TfGM,Transport,Concessionary Reimbursement,15/02/2016,1900045623,"3,600.00",HUDDERSFIELD BUS COMPANY
TfGM,Transport,Supported Bus Services,15/02/2016,1900045554,"9,180.09",JIM STONES COACHES
TfGM,Transport,Supported Bus Services,15/02/2016,1900045555,"11,211.23",JIM STONES COACHES
TfGM,Transport,Concessionary Reimbursement,15/02/2016,1900045624,"20,426.00",JIM STONES COACHES
TfGM,Transport,Concessionary Reimbursement,15/02/2016,1900045625,"21,000.00",LANCASHIRE UTD
TfGM,Transport,Supported Bus Services,15/02/2016,1900045534,"54,966.33",M TRAVEL
TfGM,Transport,Supported Bus Services,15/02/2016,1900045535,"26,741.33",M TRAVEL
TfGM,Transport,Supported Bus Services,15/02/2016,1900045536,"1,368.73",M TRAVEL
TfGM,Transport,Concessionary Reimbursement,15/02/2016,1900045626,"5,000.00",M TRAVEL
TfGM,Transport,Supported Bus Services,15/02/2016,1900045512,"39,365.00",MANCHESTER COMMUNITY TRANSPORT
TfGM,Transport,Supported Bus Services,15/02/2016,1900045513,"218,791.52",MANCHESTER COMMUNITY TRANSPORT
TfGM,Transport,Supported Bus Services,15/02/2016,1900045514,"11,752.25",MANCHESTER COMMUNITY TRANSPORT
TfGM,Transport,Concessionary Reimbursement,15/02/2016,1900045600,567.60,MANCHESTER COMMUNITY TRANSPORT
TfGM,Transport,Concessionary Reimbursement,15/02/2016,1900045627,"51,000.00",MANCHESTER COMMUNITY TRANSPORT
TfGM,Transport,Concessionary Reimbursement,15/02/2016,1900045594,"62,000.00",NORTHERN RAIL LIMITED
TfGM,Transport,Supported Bus Services,15/02/2016,1900045520,"41,679.03",OLYMPIA TRAVEL
TfGM,Transport,Supported Bus Services,15/02/2016,1900045573,"98,782.34",R S TYRER LTD
TfGM,Transport,Supported Bus Services,15/02/2016,1900045574,"1,762.72",R S TYRER LTD
TfGM,Transport,Supported Bus Services,15/02/2016,1900045515,"101,000.00",RADIO CABS T/A ECO TRAVEL
TfGM,Transport,Supported Bus Services,15/02/2016,1900045516,"19,682.33",RADIO CABS T/A ECO TRAVEL
TfGM,Transport,Concessionary Reimbursement,15/02/2016,1900045601,"1,596.40",RADIO CABS T/A ECO TRAVEL
TfGM,Transport,Concessionary Reimbursement,15/02/2016,1900045640,"4,000.00",ROJAY SERVICES LTD T/A WIGAN COACHW
TfGM,Transport,Supported Bus Services,15/02/2016,1900045528,"133,121.60",ROSSENDALE TRANSPORT
TfGM,Transport,Supported Bus Services,15/02/2016,1900045529,"59,458.60",ROSSENDALE TRANSPORT
TfGM,Transport,Supported Bus Services,15/02/2016,1900045530,"12,492.16",ROSSENDALE TRANSPORT
TfGM,Transport,Concessionary Reimbursement,15/02/2016,1900045629,"95,000.00",ROSSENDALE TRANSPORT
TfGM,Transport,Supported Bus Services,15/02/2016,1900045569,"69,496.08",SELWYNS TRAVEL LTD
TfGM,Transport,Supported Bus Services,15/02/2016,1900045570,940.73,SELWYNS TRAVEL LTD
TfGM,Transport,Supported Bus Services,15/02/2016,1700028957,(751.90),STAGECOACH SERVICES LTD
TfGM,Transport,Supported Bus Services,15/02/2016,1900045540,"242,285.77",STAGECOACH SERVICES LTD
TfGM,Transport,Supported Bus Services,15/02/2016,1900045541,"334,953.44",STAGECOACH SERVICES LTD
TfGM,Transport,Supported Bus Services,15/02/2016,1900045542,"32,447.30",STAGECOACH SERVICES LTD
TfGM,Transport,Pass Withdrawal Scheme,15/02/2016,1900045607,540.00,STAGECOACH SERVICES LTD
TfGM,Transport,Concessionary Reimbursement,15/02/2016,1900045631,"1,331,250.00",STAGECOACH SERVICES LTD
TfGM,Transport,Concessionary Reimbursement,15/02/2016,1900045632,"18,500.00",STAGECOACH SERVICES LTD
TfGM,Transport,Concessionary Reimbursement,15/02/2016,1900045633,"262,750.00",STAGECOACH SERVICES LTD
TfGM,Transport,Supported Bus Services,15/02/2016,1900045571,"27,691.18",STOTTS TOURS
TfGM,Transport,Supported Bus Services,15/02/2016,1900045572,"69,035.09",STOTTS TOURS
TfGM,Transport,Concessionary Reimbursement,15/02/2016,1900045634,"21,000.00",STOTTS TOURS
TfGM,Transport,Supported Bus Services,15/02/2016,1900045553,"12,999.99",TELECARS
TfGM,Transport,Concessionary Reimbursement,15/02/2016,1900045602,"1,414.85",TELECARS
TfGM,Transport,Concessionary Reimbursement,15/02/2016,1900045595,"8,750.00",TRANSPENNINE EXPRESS
TfGM,Transport,Concessionary Reimbursement,15/02/2016,1900045635,915.00,TRAVEL ASSIST SERVICES LTD
TfGM,Transport,Supported Bus Services,15/02/2016,1900045537,"13,152.81",UK COACHWAYS LTD
TfGM,Transport,Supported Bus Services,15/02/2016,1900045538,"3,926.67",UK COACHWAYS LTD
TfGM,Transport,Concessionary Reimbursement,15/02/2016,1900045636,"4,471.00",UK COACHWAYS LTD
TfGM,Transport,Concessionary Reimbursement,15/02/2016,1900045637,"4,000.00",VALE OF LLANGOLLEN TRAVEL LTD
TfGM,Transport,Supported Bus Services,15/02/2016,1900045543,"6,104.19",VIKING COACHES
TfGM,Transport,Concessionary Reimbursement,15/02/2016,1900045638,"6,000.00",WARRINGTON BOROUGH TRANSPORT LTD
TfGM,Transport,Supported Bus Services,15/02/2016,1900045565,"16,697.91",WIGAN BUSES LTD
TfGM,Transport,Supported Bus Services,15/02/2016,1900045566,882.33,WIGAN BUSES LTD
TfGM,Transport,Concessionary Reimbursement,15/02/2016,1900045639,"10,000.00",WIGAN BUSES LTD
TfGM,Transport,Supported Bus Services,15/02/2016,1900045509,"6,533.17",WIGAN COMMUNITY TRANSPORT
TfGM,Transport,Concessionary Reimbursement,15/02/2016,1900045603,826.85,WIGAN COMMUNITY TRANSPORT
TfGM,Transport,Environmental & Ecological Support Services,16/02/2016,5100091126,"7,947.50",AECOM LTD
TfGM,Transport,Capital Costs - Project Support Services,16/02/2016,5100090998,"5,281.32",ATKINS LTD
TfGM,Transport,Legal Services,16/02/2016,5100091099,"4,657.50",BIRCHAM DYSON BELL
TfGM,Transport,Capital Costs - Capital Project Main Contract Works,16/02/2016,5100090819,"55,522.93",BROXAP LTD
TfGM,Transport,Capital Costs - Project Support Services,16/02/2016,5100088975,"1,125.00",CDI ANDERSELITE LTD
TfGM,Transport,Capital Costs - Project Support Services,16/02/2016,5100089094,"1,125.00",CDI ANDERSELITE LTD
TfGM,Transport,Traffic Management and Monitoring Services,16/02/2016,5100090443,"5,986.00",CUBIC TRANSPORTATION SYSTEMS (ITMS)
TfGM,Transport,Capital Costs - IS Software & Maintenance,16/02/2016,5100090512,"265,726.10",CUBIC TRANSPORTATION SYSTEMS (ITMS)
TfGM,Transport,Supported Bus Services,16/02/2016,5100088599,"19,841.45",DERBYSHIRE COUNTY COUNCIL
TfGM,Corporate Services,IS Software & Maintenance,16/02/2016,5100090529,"50,968.00",EP MORRIS
TfGM,Transport,Capital Costs - Legal Services,16/02/2016,5100090532,"10,597.50",EVERSHEDS LLP
TfGM,Transport,Print & Media,16/02/2016,5100090919,676.00,FRETWELL PRINT AND DIRECT MAIL
TfGM,Transport,Occupational Health,16/02/2016,5100091118,"4,225.00",HEALTHWORK
TfGM,Transport,Occupational Health,16/02/2016,5100091119,"3,900.00",HEALTHWORK
TfGM,Transport,Print & Media,16/02/2016,5100090877,770.00,INTREPIDFISH  LIMITED
TfGM,Transport,Heavy Rail Support Services,16/02/2016,5100090942,"17,991.00",JACOBS UK LTD
TfGM,Transport,Passenger Shelter Costs,16/02/2016,5100091020,"12,885.73",JC DECAUX UK LTD
TfGM,Transport,Capital Costs - Capital Project Main Contract Works,16/02/2016,5100091131,"575,028.89",KIER CONSTRUCTION - NORTHERN
TfGM,Corporate Services,Financial and Commercial Support Services,16/02/2016,5100090663,"28,000.00",KPMG
TfGM,Transport,IS Support & Maintenance,16/02/2016,5100090454,575.00,LANGUAGE LINE
TfGM,Transport,Smart Ticketing,16/02/2016,5100091107,"25,987.50",MARBLE CONSULTING LTD
TfGM,Transport,Programme Assurance Services,16/02/2016,5100090233,"23,665.00",MAZARS LLP
TfGM,Transport,Research Services,16/02/2016,5100090633,"1,687.50",MIKE BARTRAM LTD
TfGM,Transport,Vehicle Repairs & Maintenance,16/02/2016,5100090513,555.00,OPTARE LTD
TfGM,Transport,Vehicle Repairs & Maintenance,16/02/2016,5100090514,555.00,OPTARE LTD
TfGM,Transport,Vehicle Repairs & Maintenance,16/02/2016,5100090515,550.00,OPTARE LTD
TfGM,Transport,Capital Costs - Planning Support Services,16/02/2016,5100090246,"8,165.00",OVE ARUP & PARTNERS INTERNATIONAL L
TfGM,Transport,Print & Media,16/02/2016,5100090465,911.68,PARAGON GROUP UK LTD (A/CS REC)
TfGM,Corporate Services,IS Support Services,16/02/2016,5100091017,"3,900.00",PARAGON TELECOMS LTD
TfGM,Transport,Heavy Rail Support Services,16/02/2016,5100090351,"5,565.00",PRACTICUS LIMITED
TfGM,Transport,CCTV Support Services,16/02/2016,5100090434,"31,526.50",ROSGAL LTD
TfGM,Transport,Metrolink Operating Costs,16/02/2016,5100089223,"106,102.00",SCHEIDT & BACHMANN GMBH
TfGM,Transport,Metrolink Operating Costs,16/02/2016,5100089223,"106,102.00",SCHEIDT & BACHMANN GMBH
TfGM,Transport,Capital Costs - Metrolink Operating Costs,16/02/2016,5100090023,"24,080.00",SCHEIDT & BACHMANN GMBH
TfGM,Transport,Capital Costs - Software Support Services,16/02/2016,5100090023,"24,080.00",SCHEIDT & BACHMANN GMBH
TfGM,Transport,Metrolink Operating Costs,16/02/2016,5100090066,"19,035.06",SCHEIDT & BACHMANN GMBH
TfGM,Transport,Metrolink Operating Costs,16/02/2016,5100090066,"19,035.06",SCHEIDT & BACHMANN GMBH
TfGM,Transport,Metrolink Operating Costs,16/02/2016,5100090303,"10,628.80",SCHEIDT & BACHMANN GMBH
TfGM,Transport,Metrolink Operating Costs,16/02/2016,5100090303,"10,628.80",SCHEIDT & BACHMANN GMBH
TfGM,Transport,Metrolink Operating Costs,16/02/2016,5100090424,"(10,628.80)",SCHEIDT & BACHMANN GMBH
TfGM,Transport,Metrolink Operating Costs,16/02/2016,5100090424,"10,628.80",SCHEIDT & BACHMANN GMBH
TfGM,Corporate Services,Property & Equipment Maintenance,16/02/2016,5100090447,"3,400.00",STRUCTURAL SYSTEMS (UK) LTD
TfGM,Transport,Sustainable Transport Support Services,16/02/2016,5100090885,"12,659.50",SUSTRANS LTD
TfGM,Corporate Services,IS Consumables,16/02/2016,5100090886,"2,564.20",TANGIBLE BENEFIT LTD
TfGM,Transport,Capital Costs - Computer and Communications Equipment,16/02/2016,5100090869,"1,088.00",TOTAL COMPUTERS LTD
TfGM,Transport,Cleaning,16/02/2016,5100090253,458.64,TUDOR CONTRACT CLEANERS LTD
TfGM,Transport,Cleaning,16/02/2016,5100090255,611.52,TUDOR CONTRACT CLEANERS LTD
TfGM,Transport,Cleaning,16/02/2016,5100090259,458.64,TUDOR CONTRACT CLEANERS LTD
TfGM,Transport,Cleaning,16/02/2016,5100090260,723.45,TUDOR CONTRACT CLEANERS LTD
TfGM,Transport,Cleaning,16/02/2016,5100090263,458.68,TUDOR CONTRACT CLEANERS LTD
TfGM,Transport,Cleaning,16/02/2016,5100090267,"7,751.50",TUDOR CONTRACT CLEANERS LTD
TfGM,Transport,Cleaning,16/02/2016,5100090268,770.16,TUDOR CONTRACT CLEANERS LTD
TfGM,Transport,Cleaning,16/02/2016,5100090273,709.43,TUDOR CONTRACT CLEANERS LTD
TfGM,Transport,Cleaning,16/02/2016,5100090338,540.00,TUDOR CONTRACT CLEANERS LTD
TfGM,Transport,Training,16/02/2016,5100090708,"1,500.00",TUNAFISH MEDIA LTD
TfGM,Transport,Capital Costs - Quantity Surveying Services,16/02/2016,5100090871,"4,323.60",TURNER & TOWNSEND PROJECT MANAGEMEN
TfGM,Transport,Capital Costs - Project Support Services,16/02/2016,5100090872,633.00,TURNER & TOWNSEND PROJECT MANAGEMEN
TfGM,Transport,Capital Costs - Heavy Rail Support Services,16/02/2016,5100090873,"1,397.25",TURNER & TOWNSEND PROJECT MANAGEMEN
TfGM,Transport,Capital Costs - Programme and Project Management Services,16/02/2016,5100090874,"3,717.75",TURNER & TOWNSEND PROJECT MANAGEMEN
TfGM,Transport,Capital Costs - Programme and Project Management Services,16/02/2016,5100090415,"2,675.00",TXM RECRUIT LIMITED
TfGM,Transport,Capital Costs - Utility & Service Diversion Costs,16/02/2016,5100091132,"93,656.25",UNITED UTILITIES WATER PLC
TfGM,Transport,Capital Costs - Design Support Services,16/02/2016,5100090473,"2,695.43",URBAN VISION PARTNERSHIP LTD
TfGM,Transport,Environmental & Ecological Support Services,16/02/2016,5100090427,"2,120.00",WYG ENV PLANNING TRANSPORT LTD
TfGM,Transport,Vehicle Costs,17/02/2016,1200037508,841.53,ALLSTAR
TfGM,Transport,Capital Costs - Acoustic & Engineering Support Services,19/02/2016,5100090632,"1,000.00",ACOUSTIC & ENGINEERING CONSULTANTS
TfGM,Transport,Capital Costs - Project Management Services,19/02/2016,5100091124,"12,000.00",AD2 LTD
TfGM,Transport,Capital Costs - Design Support Services,19/02/2016,5100088791,"22,389.50",AECOM LTD
TfGM,Transport,Capital Costs - Engineering Support Services,19/02/2016,5100089021,"11,340.00",AECOM LTD
TfGM,Transport,Planning Support Services,19/02/2016,5100090902,"6,545.00",AECOM LTD
TfGM,Transport,Research Services,19/02/2016,5100090921,"3,648.80",AECOM LTD
TfGM,Transport,Capital Costs - Project Support Services,19/02/2016,5100090927,"18,292.00",AECOM LTD
TfGM,Transport,Capital Costs - Engineering Support Services,19/02/2016,5100091010,"10,800.00",AECOM LTD
TfGM,Transport,Research Services,19/02/2016,5100091055,"9,537.29",AECOM LTD
TfGM,Transport,Highway Safety Support Services,19/02/2016,5100091150,"16,780.00",AECOM LTD
TfGM,Transport,Community Engagement Services,19/02/2016,5100091243,520.00,AECOM LTD
TfGM,Corporate Services,IS Support Services,19/02/2016,5100091153,"3,075.00",AMBERSAIL LTD
TfGM,Transport,Heavy Rail Support Services,19/02/2016,5100091285,"1,030.10",AMEY (CONSULTING & RAIL)
TfGM,Transport,Heavy Rail Support Services,19/02/2016,5100091288,"1,147.60",AMEY (CONSULTING & RAIL)
TfGM,Transport,Heavy Rail Support Services,19/02/2016,5100091292,"1,959.60",AMEY (CONSULTING & RAIL)
TfGM,Transport,Subscriptions,19/02/2016,5100090634,650.00,APPROACHABLE CERTIFICATION LTD
TfGM,Transport,Capital Costs - Environmental & Ecological Support Services,19/02/2016,5100090798,"1,108.46",ARCADIS CONSULTING (UK) LTD
TfGM,Transport,Capital Costs - Environmental & Ecological Support Services,19/02/2016,5100090799,791.43,ARCADIS CONSULTING (UK) LTD
TfGM,Transport,Capital Costs - Environmental & Ecological Support Services,19/02/2016,5100090801,877.13,ARCADIS CONSULTING (UK) LTD
TfGM,Transport,Capital Costs - Programme and Project Management Services,19/02/2016,5100089862,"7,494.80",ARK PROJECT MANAGEMENT LTD
TfGM,Transport,Capital Costs - Programme and Project Management Services,19/02/2016,5100091246,"8,042.95",ARK PROJECT MANAGEMENT LTD
TfGM,Transport,Print & Media,19/02/2016,5100090705,684.00,ARMIN & BUTLER LTD
TfGM,Transport,Property & Equipment Maintenance,19/02/2016,5100090690,"2,186.60",ASSA ABLOY ENTRANCE SYSTEMS LTD
TfGM,Transport,Property & Equipment Maintenance,19/02/2016,5100090691,"1,333.93",ASSA ABLOY ENTRANCE SYSTEMS LTD
